{"text_format":"1","workbook":"xlsx","n_sheets":22,"sheets":["platnost","Planá n.Lužnicí, Strkov","Planá n.Lužnicí,Strkovská","Planá n.Lužnicí, nám.","Planá n.Lužnicí U řadovek","Planá n.Lužnicí, Masokomb.točna","Planá n.Lužnicí, Masokomb.záv.","Planá n.Lužnicí,Madeta","Planá n.Lužnicí, hřbitov","Planá n.Lužnicí,Silon a.s.","Sezimovo Ústí II, Kovosvit","sídl. nad Lužnicí E55","Sezimovo Ústí I náměstí","Nový hřbitov","Na Kopečku","Černé mosty","Aut.nádraží","Poliklinika","U Reálky","Písecké rozcestí","Nemocnice","Klokoty"],"not_rendered":{"charts":0,"images":1,"macros":1,"external_links":1,"defined_names":0,"comments":0,"pivot_tables":0},"unopened":[],"bounds":{"document_bytes":16777216,"sheet_cells":100000,"rows_first":2000,"rows_last":500,"rows_between":2000,"halvings":0,"cell_chars":16384,"cell_head_chars":4096},"cells_cut":0,"cells_raw":0,"read":"whole","date_system":"1900"}

{"sheet":"platnost","index":0,"n_rows":38,"n_cols":7,"rows_kept":38,"cut":false,"hidden":false,"merged":[]}
["platí od 31.8.2025"]
["    od 30.června do 29.srpna"]
[]
[]
[]
[]
[]
[]
[]
[]
[]
[]
[]
[]
[]
[]
[]
[]
[]
[]
[]
[null,null,null,"Vysvětlivky:",null,null,"Všechny spoje s bezbariérově přístupným vozidlem"]
[null,null,null,null,null,null,"POZOR - zastávka Nový hřbitov NA ZNAMENÍ"]
[null,null,null,null,null,null,"k - jede pouze ve dnech školního vyučování"]
[null,null,null,null,null,null,"POZOR od 23.00 hod do 05.00 hod platí noční tarif  "]
[null,null,null,null,null,null,"G - nejede 19.4.2025"]
[null,null,null,null,null,null,"A - spoj neobsluhuje zastávky Masokombinát točna a Masokombinát závod"]
[null,null,null,null,null,null,"B - jede pouze v pátek pokud není dnem prac. klidu a jede 18.4. a 4.7.2019"]
["jízdné 16,- Kč","platí 10 minut",null,null,null,null,"C - jede od pondělí do čtvrtka, nejede 31.12.2018, 30.4. a 7.5.2019 "]
["jízdné 20,- Kč","platí 20 minut",null,null,null,null,"Všechny spoje s bezbariérově přístupným vozidlem"]
["jízdné 24,- Kč","platí 60 minut"]
["jízdné 16,- Kč"]
[]
[]
["jízdné 10,- Kč"]
["jízdné 12,- Kč"]
["jízdné 14,- Kč"]
["jízdné 16,- Kč"]

{"sheet":"Planá n.Lužnicí, Strkov","index":1,"n_rows":36,"n_cols":28,"rows_kept":36,"cut":false,"hidden":false,"merged":[[0,24,3,27]]}
["Platnost:",null,null,{"$f":"platnost!$A$1","v":"platí od 31.8.2025"},null,null,null,null,null,null,null,"informace: 381256366",null,null,null,null,null,null,null,null,null,null,null,null,13]
["COMETT PLUS, spol.s r.o.,Chýnovská 2115,Tábor 39002,mhd@comettplus.cz"]
["Linka : ",null,"395013",null,null,null,null,"Zastávka:",null,null,{"$f":"E5","v":"Planá n.Lužnicí Strkov"}]
[null,null,"pásmo ","minut. vzdál."]
[0,"V","C",0,"Planá n.Lužnicí Strkov",null,null,null,null,null,"Pracovní dny",null,null,null,null,null,null,null,null,"Soboty",null,null,null,"neděle + svátky ",null,null,null,"Pracovní dny - omezení dopravy MHD"]
[1,"V","C",{"$f":"+D5+$A6","v":1},"Planá n.Lužnicí Strkovská ",null,null,null,null,null,"Hod","minuty",null,null,null,null,null,null,null,"minuty",null,null,null,"minuty",null,null,null,{"$f":"platnost!$A$2","v":"    od 30.června do 29.srpna"}]
[2,"V","C",{"$f":"+D6+$A7","v":3},"Planá n.Lužnicí náměstí",null,null,null,null,null,0,null,null,null,null,null,null,null,null,"G40",null,null,null,40]
[1,"V","C",4,"Planá n.Lužnicí U řadovek",null,null,null,null,null,1]
[2,"V","C",6,"Planá n.Lužnicí Masokomb. točna",null,null,null,null,null,2]
[1,"V","C",7,"Planá n.Lužnicí Masokomb. závod",null,null,null,null,null,3]
[1,"V","C",8,"Planá n.Lužnicí Madeta",null,null,null,null,null,4]
[1,"V","C",9,"Planá n.Lužnicí hřbitov",null,null,null,null,null,5,17,null,null,null,null,null,null,null,"03",null,null,null,"03",null,null,null,17]
[2,"V","C,B",11,"Planá n.Lužnicí Silon",null,null,null,null,null,6]
[1,"V","B",12,"Sezimovo Ústí II Kovosvit",null,null,null,null,null,7,"k00"]
[5,"V","B",17,"sídl. Nad Lužnicí E 55",null,null,null,null,null,8,null,null,null,null,null,null,null,null,"15",null,null,null,"15"]
[2,"V","B",{"$f":"[1]platnost!$G$29","v":"K"},"Sezimovo Ústí I rozcestí",null,null,null,null,null,9,"37",null,null,null,null,null,null,null,null,null,null,null,null,null,null,null,"37"]
[1,"V","B",{"$f":"[1]platnost!$G$29","v":"K"},"Sezimovo Ústí I náměstí",null,null,null,null,null,10,40,null,null,null,null,null,null,null,null,null,null,null,null,null,null,null,"43"]
[2,"V","B",{"$f":"[1]platnost!$G$29","v":"K"},"sídl. Nad Lužnicí ",null,null,null,null,null,11,"42",null,null,null,null,null,null,null,null,null,null,null,null,null,null,null,"42"]
[3,"V","B,A",{"$f":"+D15+$A19","v":20},"Nový hřbitov",null,null,null,null,null,12,null,null,null,null,null,null,null,null,"10",null,null,null,"10"]
[1,"V","A",{"$f":"+D19+$A20","v":21},"Na Kopečku",null,null,null,null,null,13,null,null,null,null,null,null,null,null,"30",null,null,null,"30"]
[2,"V","A",23,"Černé mosty",null,null,null,null,null,14]
[2,"V","A",25,"Autobusové nádraží",null,null,null,null,null,15,null,null,null,null,null,null,null,null,"05",null,null,null,"05"]
[2,"V","A",27,"Poliklinika",null,null,null,null,null,16,"17",null,null,null,null,null,null,null,"35",null,null,null,"35",null,null,null,"17"]
[2,"V","A",29,"U Reálky",null,null,null,null,null,17]
[2,"V","A",31,"Písecké rozcestí",null,null,null,null,null,18,null,null,null,null,null,null,null,null,"02",null,null,null,"02"]
[2,"V","A",33,"Nemocnice",null,null,null,null,null,19,null,null,null,null,null,null,null,null,"55",null,null,null,"55"]
[2,"V","A",35,"Klokoty",null,null,null,null,null,20]
[1,"V","A",36,"Klokoty točna",null,null,null,null,null,21,32,null,null,null,null,null,null,null,null,null,null,null,null,null,null,null,32]
[null,null,{"$f":"platnost!$A29","v":"jízdné 16,- Kč"},null,null,"platí 10 minut",null,null,null,null,22,"10 45",null,null,null,null,null,null,null,"45",null,null,null,"45",null,null,null,"10 45"]
[null,null,{"$f":"platnost!$A30","v":"jízdné 20,- Kč"},null,null,"platí 20 minut",null,null,null,null,23]
[null,null,{"$f":"platnost!$A31","v":"jízdné 24,- Kč"},null,null,"platí 60 minut"]
[null,null,null,null,null,null,null,null,null,null,"Vysvětlivky:",null,null,{"$f":"platnost!$G$26","v":"G - nejede 19.4.2025"}]
[null,null,null,null,null,null,null,null,null,null,null,null,null,"k - jede pouze ve dnech školního vyučování"]
[null,null,null,null,null,null,null,null,null,null,null,null,null,"POZOR - zastávka Planá nad Lužnicí Strkovská a Nový hřbitov NA ZNAMENÍ"]
[]
[null,null,null,null,null,null,null,null,null,null,null,null,null,{"$f":"platnost!$G$22","v":"Všechny spoje s bezbariérově přístupným vozidlem"}]

{"sheet":"Planá n.Lužnicí,Strkovská","index":2,"n_rows":36,"n_cols":28,"rows_kept":36,"cut":false,"hidden":false,"merged":[[0,24,3,27]]}
["Platnost:",null,null,{"$f":"platnost!$A$1","v":"platí od 31.8.2025"},null,null,null,null,null,null,null,"informace: 381256366",null,null,null,null,null,null,null,null,null,null,null,null,13]
["COMETT PLUS, spol.s r.o.,Chýnovská 2115,Tábor 39002,mhd@comettplus.cz"]
["Linka : ",null,"395013",null,null,null,null,"Zastávka:",null,null,{"$f":"E6","v":"Planá n.Lužnicí Strkovská "}]
[null,null,"pásmo ","minut. vzdál."]
[0,null,"C",null,"Planá n.Lužnicí Strkov",null,null,null,null,null,"Pracovní dny",null,null,null,null,null,null,null,null,"Soboty",null,null,null,"neděle + svátky ",null,null,null,"Pracovní dny - omezení dopravy MHD"]
[1,"V","C",0,"Planá n.Lužnicí Strkovská ",null,null,null,null,null,"Hod","minuty",null,null,null,null,null,null,null,"minuty",null,null,null,"minuty",null,null,null,{"$f":"platnost!$A$2","v":"    od 30.června do 29.srpna"}]
[2,"V","C",{"$f":"+D6+$A7","v":2},"Planá n.Lužnicí náměstí",null,null,null,null,null,0,null,null,null,null,null,null,null,null,"G41",null,null,null,"41"]
[1,"V","C",{"$f":"+D7+$A8","v":3},"Planá n.Lužnicí U řadovek",null,null,null,null,null,1]
[2,"V","C",5,"Planá n.Lužnicí Masokomb. točna",null,null,null,null,null,2]
[1,"V","C",6,"Planá n.Lužnicí Masokomb. závod",null,null,null,null,null,3]
[1,"V","C",7,"Planá n.Lužnicí Madeta",null,null,null,null,null,4]
[1,"V","C",8,"Planá n.Lužnicí hřbitov",null,null,null,null,null,5,18,null,null,null,null,null,null,null,"04",null,null,null,"04",null,null,null,18]
[2,"V","C,B",10,"Planá n.Lužnicí Silon",null,null,null,null,null,6]
[1,"V","B",11,"Sezimovo Ústí II Kovosvit",null,null,null,null,null,7,"k01"]
[5,"V","B",16,"sídl. Nad Lužnicí E 55",null,null,null,null,null,8,null,null,null,null,null,null,null,null,"16",null,null,null,"16"]
[2,"V","B",{"$f":"[1]platnost!$G$29","v":"K"},"Sezimovo Ústí I rozcestí",null,null,null,null,null,9,"39",null,null,null,null,null,null,null,null,null,null,null,null,null,null,null,"39"]
[1,"V","B",{"$f":"[1]platnost!$G$29","v":"K"},"Sezimovo Ústí I náměstí",null,null,null,null,null,10,41,null,null,null,null,null,null,null,null,null,null,null,null,null,null,null,"44"]
[2,"V","B",{"$f":"[1]platnost!$G$29","v":"K"},"sídl. Nad Lužnicí ",null,null,null,null,null,11,"44",null,null,null,null,null,null,null,null,null,null,null,null,null,null,null,"44"]
[3,"V","B,A",{"$f":"+D15+$A19","v":19},"Nový hřbitov",null,null,null,null,null,12,null,null,null,null,null,null,null,null,"11",null,null,null,"11"]
[1,"V","A",{"$f":"+D19+$A20","v":20},"Na Kopečku",null,null,null,null,null,13,null,null,null,null,null,null,null,null,"31",null,null,null,"31"]
[2,"V","A",22,"Černé mosty",null,null,null,null,null,14]
[2,"V","A",24,"Autobusové nádraží",null,null,null,null,null,15,null,null,null,null,null,null,null,null,"06",null,null,null,"06"]
[2,"V","A",26,"Poliklinika",null,null,null,null,null,16,"19",null,null,null,null,null,null,null,"36",null,null,null,"36",null,null,null,"19"]
[2,"V","A",28,"U Reálky",null,null,null,null,null,17]
[2,"V","A",30,"Písecké rozcestí",null,null,null,null,null,18,null,null,null,null,null,null,null,null,"03",null,null,null,"03"]
[2,"V","A",32,"Nemocnice",null,null,null,null,null,19,null,null,null,null,null,null,null,null,"56",null,null,null,"56"]
[2,"V","A",34,"Klokoty",null,null,null,null,null,20]
[1,"V","A",35,"Klokoty točna",null,null,null,null,null,21,33,null,null,null,null,null,null,null,null,null,null,null,null,null,null,null,"33"]
[null,null,{"$f":"platnost!$A29","v":"jízdné 16,- Kč"},null,null,"platí 10 minut",null,null,null,null,22,"11 46",null,null,null,null,null,null,null,"46",null,null,null,"46",null,null,null,"11 46"]
[null,null,{"$f":"platnost!$A30","v":"jízdné 20,- Kč"},null,null,"platí 20 minut",null,null,null,null,23]
[null,null,{"$f":"platnost!$A31","v":"jízdné 24,- Kč"},null,null,"platí 60 minut"]
[null,null,null,null,null,null,null,null,null,null,"Vysvětlivky:",null,null,{"$f":"platnost!$G$26","v":"G - nejede 19.4.2025"}]
[null,null,null,null,null,null,null,null,null,null,null,null,null,"k - jede pouze ve dnech školního vyučování"]
[null,null,null,null,null,null,null,null,null,null,null,null,null,"POZOR - zastávka Planá nad Lužnicí Strkovská a Nový hřbitov NA ZNAMENÍ"]
[]
[null,null,null,null,null,null,null,null,null,null,null,null,null,{"$f":"platnost!$G$22","v":"Všechny spoje s bezbariérově přístupným vozidlem"}]

{"sheet":"Planá n.Lužnicí, nám.","index":3,"n_rows":36,"n_cols":28,"rows_kept":36,"cut":false,"hidden":false,"merged":[[0,24,3,27]]}
["Platnost:",null,null,{"$f":"platnost!$A$1","v":"platí od 31.8.2025"},null,null,null,null,null,null,null,"informace: 381256366",null,null,null,null,null,null,null,null,null,null,null,null,13]
["COMETT PLUS, spol.s r.o.,Chýnovská 2115,Tábor 39002,mhd@comettplus.cz"]
["Linka : ",null,"395013",null,null,null,null,"Zastávka:",null,null,{"$f":"E7","v":"Planá n.Lužnicí náměstí"}]
[null,null,"pásmo ","minut. vzdál."]
[0,null,"C",null,{"$f":"'Planá n.Lužnicí, Strkov'!$E$5","v":"Planá n.Lužnicí Strkov"},null,null,null,null,null,"Pracovní dny",null,null,null,null,null,null,null,null,"Soboty",null,null,null,"neděle + svátky",null,null,null,"Pracovní dny - omezení dopravy MHD"]
[1,null,"C",null,"Planá n.Lužnicí Strkovská ",null,null,null,null,null,"Hod","minuty",null,null,null,null,null,null,null,"minuty",null,null,null,"minuty",null,null,null,{"$f":"platnost!$A$2","v":"    od 30.června do 29.srpna"}]
[2,"V","C",0,{"$f":"'Planá n.Lužnicí, Strkov'!$E$7","v":"Planá n.Lužnicí náměstí"},null,null,null,null,null,0,null,null,null,null,null,null,null,null,"G43",null,null,null,"43"]
[1,"V","C",{"$f":"+D7+$A8","v":1},"Planá n.Lužnicí U řadovek",null,null,null,null,null,1]
[2,"V","C",{"$f":"+D8+$A9","v":3},"Planá n.Lužnicí Masokomb. točna",null,null,null,null,null,2,null,null,null,null,null,null,null,null,"A55",null,null,null,"A55"]
[1,"V","C",4,"Planá n.Lužnicí Masokomb. závod",null,null,null,null,null,3]
[1,"V","C",5,{"$f":"'Planá n.Lužnicí, Strkov'!$E$11","v":"Planá n.Lužnicí Madeta"},null,null,null,null,null,4,"B15",null,null,null,null,null,null,null,null,null,null,null,null,null,null,null,"B15"]
[1,"V","C",6,{"$f":"'Planá n.Lužnicí, Strkov'!$E$12","v":"Planá n.Lužnicí hřbitov"},null,null,null,null,null,5,"00 20 ",null,null,null,null,null,null,null,"06",null,null,null,"06",null,null,null,"00 20 "]
[2,"V","C,B",8,{"$f":"'Planá n.Lužnicí, Strkov'!$E$13","v":"Planá n.Lužnicí Silon"},null,null,null,null,null,6,"10 30 ",null,null,null,null,null,null,null,"05 30 ",null,null,null,"05 30 ",null,null,null,"10 30 "]
[1,"V","B",9,{"$f":"'Planá n.Lužnicí, Strkov'!$E$14","v":"Sezimovo Ústí II Kovosvit"},null,null,null,null,null,7,"05 35 ",null,null,null,null,null,null,null,25,null,null,null,25,null,null,null,"05 35 "]
[5,"V","B",14,"sídl. Nad Lužnicí E 55",null,null,null,null,null,8,50,null,null,null,null,null,null,null,"18 50",null,null,null,"18 50",null,null,null,50]
[2,"V","B",{"$f":"[1]platnost!$G$29","v":"K"},{"$f":"'Planá n.Lužnicí, Strkov'!$E$16","v":"Sezimovo Ústí I rozcestí"},null,null,null,null,null,9,"42",null,null,null,null,null,null,null,40,null,null,null,40,null,null,null,"42"]
[1,"V","B",{"$f":"[1]platnost!$G$29","v":"K"},{"$f":"'Planá n.Lužnicí, Strkov'!$E$17","v":"Sezimovo Ústí I náměstí"},null,null,null,null,null,10,43,null,null,null,null,null,null,null,40,null,null,null,40,null,null,null,46]
[2,"V","B",{"$f":"[1]platnost!$G$29","v":"K"},{"$f":"'Planá n.Lužnicí, Strkov'!$E$18","v":"sídl. Nad Lužnicí "},null,null,null,null,null,11,"47",null,null,null,null,null,null,null,30,null,null,null,30,null,null,null,"47"]
[3,"V","B,A",{"$f":"+D15+$A19","v":17},{"$f":"'Planá n.Lužnicí, Strkov'!$E$19","v":"Nový hřbitov"},null,null,null,null,null,12,null,null,null,null,null,null,null,null,"13 55 ",null,null,null,"13 55 "]
[1,"V","A",{"$f":"+D19+$A20","v":18},{"$f":"'Planá n.Lužnicí, Strkov'!$E$20","v":"Na Kopečku"},null,null,null,null,null,13,15,null,null,null,null,null,null,null,"33",null,null,null,"33",null,null,null,15]
[2,"V","A",20,{"$f":"'Planá n.Lužnicí, Strkov'!$E$21","v":"Černé mosty"},null,null,null,null,null,14,"02 45 ",null,null,null,null,null,null,null,20,null,null,null,20,null,null,null,"02 45 "]
[2,"V","A",22,{"$f":"'Planá n.Lužnicí, Strkov'!$E$22","v":"Autobusové nádraží"},null,null,null,null,null,15," ",null,null,null,null,null,null,null,"08 45 ",null,null,null,"08 45"]
[2,"V","A",24,{"$f":"'Planá n.Lužnicí, Strkov'!$E$23","v":"Poliklinika"},null,null,null,null,null,16,"00 22",null,null,null,null,null,null,null,"38",null,null,null,"38",null,null,null,"00 22"]
[2,"V","A",26,{"$f":"'Planá n.Lužnicí, Strkov'!$E$24","v":"U Reálky"},null,null,null,null,null,17,20,null,null,null,null,null,null,null,35,null,null,null,35,null,null,null,20]
[2,"V","A",28,{"$f":"'Planá n.Lužnicí, Strkov'!$E$25","v":"Písecké rozcestí"},null,null,null,null,null,18,"05",null,null,null,null,null,null,null,"05 55 ",null,null,null,"05 55 ",null,null,null,"05"]
[2,"V","A",30,{"$f":"'Planá n.Lužnicí, Strkov'!$E$26","v":"Nemocnice"},null,null,null,null,null,19,35,null,null,null,null,null,null,null,58,null,null,null,58,null,null,null,35]
[2,"V","A",32,{"$f":"'Planá n.Lužnicí, Strkov'!$E$27","v":"Klokoty"},null,null,null,null,null,20,null,null,null,null,null,null,null,null,"40",null,null,null,"40"]
[1,"V","A",33,{"$f":"'Planá n.Lužnicí, Strkov'!$E$28","v":"Klokoty točna"},null,null,null,null,null,21,"B10 35 ",null,null,null,null,null,null,null,25,null,null,null,25,null,null,null,"35 "]
[null,null,{"$f":"platnost!$A29","v":"jízdné 16,- Kč"},null,null,"platí 10 minut",null,null,null,null,22,"13 48",null,null,null,null,null,null,null,"05 48",null,null,null,"05 48",null,null,null,"13 48"]
[null,null,{"$f":"platnost!$A30","v":"jízdné 20,- Kč"},null,null,"platí 20 minut",null,null,null,null,23,"11",null,null,null,null,null,null,null,30,null,null,null,30,null,null,null,"11"]
[null,null,{"$f":"platnost!$A31","v":"jízdné 24,- Kč"},null,null,"platí 60 minut"]
[null,null,null,null,null,null,null,null,null,null,"Vysvětlivky:",null,null,{"$f":"platnost!$G$27","v":"A - spoj neobsluhuje zastávky Masokombinát točna a Masokombinát závod"}]
[null,null,null,null,null,null,null,null,null,null,null,null,null,{"$f":"platnost!$G$26","v":"G - nejede 19.4.2025"}]
[null,null,null,null,null,null,null,null,null,null,null,null,null,{"$f":"platnost!$G$23","v":"POZOR - zastávka Nový hřbitov NA ZNAMENÍ"}]
[null,null,null,null,null,null,null,null,null,null,null,null,null,"B - po dobu uzavírky spoj obsluhuje Sezimovo Ústí I náměstí"]
[null,null,null,null,null,null,null,null,null,null,null,null,null,{"$f":"platnost!$G$22","v":"Všechny spoje s bezbariérově přístupným vozidlem"}]

{"sheet":"Planá n.Lužnicí U řadovek","index":4,"n_rows":36,"n_cols":28,"rows_kept":36,"cut":false,"hidden":false,"merged":[[0,24,3,27]]}
["Platnost:",null,null,{"$f":"platnost!$A$1","v":"platí od 31.8.2025"},null,null,null,null,null,null,null,"informace: 381256366",null,null,null,null,null,null,null,null,null,null,null,null,13]
["COMETT PLUS, spol.s r.o.,Chýnovská 2115,Tábor 39002,mhd@comettplus.cz"]
["Linka : ",null,"395013",null,null,null,null,"Zastávka:",null,null,{"$f":"E8","v":"Planá n.Lužnicí U řadovek"}]
[null,null,"pásmo ","minut. vzdál."]
[0,null,"C",null,{"$f":"'Planá n.Lužnicí, Strkov'!$E$5","v":"Planá n.Lužnicí Strkov"},null,null,null,null,null,"Pracovní dny",null,null,null,null,null,null,null,null,"Soboty",null,null,null,"neděle + svátky",null,null,null,"Pracovní dny - omezení dopravy MHD"]
[1,null,"C",null,"Planá n.Lužnicí Strkovská ",null,null,null,null,null,"Hod","minuty",null,null,null,null,null,null,null,"minuty",null,null,null,"minuty",null,null,null,{"$f":"platnost!$A$2","v":"    od 30.června do 29.srpna"}]
[2,null,"C",null,{"$f":"'Planá n.Lužnicí, Strkov'!$E$7","v":"Planá n.Lužnicí náměstí"},null,null,null,null,null,0,null,null,null,null,null,null,null,null,"G44",null,null,null,"44"]
[1,"V","C",0,"Planá n.Lužnicí U řadovek",null,null,null,null,null,1]
[2,"V","C",{"$f":"+D8+$A9","v":2},"Planá n.Lužnicí Masokomb. točna",null,null,null,null,null,2,null,null,null,null,null,null,null,null,"A56",null,null,null,"A56"]
[1,"V","C",{"$f":"+D9+$A10","v":3},"Planá n.Lužnicí Masokomb. závod",null,null,null,null,null,3]
[1,"V","C",4,{"$f":"'Planá n.Lužnicí, Strkov'!$E$11","v":"Planá n.Lužnicí Madeta"},null,null,null,null,null,4,"B16",null,null,null,null,null,null,null,null,null,null,null,null,null,null,null,"B16"]
[1,"V","C",5,{"$f":"'Planá n.Lužnicí, Strkov'!$E$12","v":"Planá n.Lužnicí hřbitov"},null,null,null,null,null,5,"01 21 ",null,null,null,null,null,null,null,"07",null,null,null,"07",null,null,null,"01 21 "]
[2,"V","C,B",7,{"$f":"'Planá n.Lužnicí, Strkov'!$E$13","v":"Planá n.Lužnicí Silon"},null,null,null,null,null,6,"11 31 ",null,null,null,null,null,null,null,"06 31 ",null,null,null,"06 31 ",null,null,null,"11 31 "]
[1,"V","B",8,{"$f":"'Planá n.Lužnicí, Strkov'!$E$14","v":"Sezimovo Ústí II Kovosvit"},null,null,null,null,null,7,"06 36 ",null,null,null,null,null,null,null,26,null,null,null,26,null,null,null,"06 36 "]
[5,"V","B",13,"sídl. Nad Lužnicí E 55",null,null,null,null,null,8,51,null,null,null,null,null,null,null,"19 51",null,null,null,"19 51",null,null,null,51]
[2,"V","B",{"$f":"[1]platnost!$G$29","v":"K"},{"$f":"'Planá n.Lužnicí, Strkov'!$E$16","v":"Sezimovo Ústí I rozcestí"},null,null,null,null,null,9,"43",null,null,null,null,null,null,null,41,null,null,null,41,null,null,null,"43"]
[1,"V","B",{"$f":"[1]platnost!$G$29","v":"K"},{"$f":"'Planá n.Lužnicí, Strkov'!$E$17","v":"Sezimovo Ústí I náměstí"},null,null,null,null,null,10,44,null,null,null,null,null,null,null,41,null,null,null,41,null,null,null,47]
[2,"V","B",{"$f":"[1]platnost!$G$29","v":"K"},{"$f":"'Planá n.Lužnicí, Strkov'!$E$18","v":"sídl. Nad Lužnicí "},null,null,null,null,null,11,"48",null,null,null,null,null,null,null,31,null,null,null,31,null,null,null,"48"]
[3,"V","B,A",{"$f":"+D15+$A19","v":16},{"$f":"'Planá n.Lužnicí, Strkov'!$E$19","v":"Nový hřbitov"},null,null,null,null,null,12,null,null,null,null,null,null,null,null,"14 56 ",null,null,null,"14 56 "]
[1,"V","A",{"$f":"+D19+$A20","v":17},{"$f":"'Planá n.Lužnicí, Strkov'!$E$20","v":"Na Kopečku"},null,null,null,null,null,13,16,null,null,null,null,null,null,null,"34",null,null,null,"34",null,null,null,16]
[2,"V","A",19,{"$f":"'Planá n.Lužnicí, Strkov'!$E$21","v":"Černé mosty"},null,null,null,null,null,14,"03 46 ",null,null,null,null,null,null,null,21,null,null,null,21,null,null,null,"03 46 "]
[2,"V","A",21,{"$f":"'Planá n.Lužnicí, Strkov'!$E$22","v":"Autobusové nádraží"},null,null,null,null,null,15," ",null,null,null,null,null,null,null,"09 46",null,null,null,"09 46",null,null,null," "]
[2,"V","A",23,{"$f":"'Planá n.Lužnicí, Strkov'!$E$23","v":"Poliklinika"},null,null,null,null,null,16,"01 23",null,null,null,null,null,null,null,"39",null,null,null,"39",null,null,null,"01 23"]
[2,"V","A",25,{"$f":"'Planá n.Lužnicí, Strkov'!$E$24","v":"U Reálky"},null,null,null,null,null,17,21,null,null,null,null,null,null,null,36,null,null,null,36,null,null,null,21]
[2,"V","A",27,{"$f":"'Planá n.Lužnicí, Strkov'!$E$25","v":"Písecké rozcestí"},null,null,null,null,null,18,"06",null,null,null,null,null,null,null,"06 56 ",null,null,null,"06 56 ",null,null,null,"06"]
[2,"V","A",29,{"$f":"'Planá n.Lužnicí, Strkov'!$E$26","v":"Nemocnice"},null,null,null,null,null,19,36,null,null,null,null,null,null,null,59,null,null,null,59,null,null,null,36]
[2,"V","A",31,{"$f":"'Planá n.Lužnicí, Strkov'!$E$27","v":"Klokoty"},null,null,null,null,null,20,null,null,null,null,null,null,null,null,"41 ",null,null,null,"41"]
[1,"V","A",32,{"$f":"'Planá n.Lužnicí, Strkov'!$E$28","v":"Klokoty točna"},null,null,null,null,null,21,"B11 36 ",null,null,null,null,null,null,null,26,null,null,null,26,null,null,null,"36 "]
[null,null,{"$f":"platnost!$A29","v":"jízdné 16,- Kč"},null,null,"platí 10 minut",null,null,null,null,22,"14 49",null,null,null,null,null,null,null,"06 49",null,null,null,"06 49",null,null,null,"14 49"]
[null,null,{"$f":"platnost!$A30","v":"jízdné 20,- Kč"},null,null,"platí 20 minut",null,null,null,null,23,"12",null,null,null,null,null,null,null,"31",null,null,null,"31",null,null,null,"12"]
[null,null,{"$f":"platnost!$A31","v":"jízdné 24,- Kč"},null,null,"platí 60 minut"]
[null,null,null,null,null,null,null,null,null,null,"Vysvětlivky:",null,null,{"$f":"platnost!$G$27","v":"A - spoj neobsluhuje zastávky Masokombinát točna a Masokombinát závod"}]
[null,null,null,null,null,null,null,null,null,null,null,null,null,{"$f":"platnost!$G$26","v":"G - nejede 19.4.2025"}]
[null,null,null,null,null,null,null,null,null,null,null,null,null,{"$f":"platnost!$G$23","v":"POZOR - zastávka Nový hřbitov NA ZNAMENÍ"}]
[null,null,null,null,null,null,null,null,null,null,null,null,null,"B - po dobu uzavírky spoj obsluhuje Sezimovo Ústí I náměstí"]
[null,null,null,null,null,null,null,null,null,null,null,null,null,{"$f":"platnost!$G$22","v":"Všechny spoje s bezbariérově přístupným vozidlem"}]

{"sheet":"Planá n.Lužnicí, Masokomb.točna","index":5,"n_rows":36,"n_cols":28,"rows_kept":36,"cut":false,"hidden":false,"merged":[[0,24,3,27]]}
["Platnost:",null,null,{"$f":"platnost!$A$1","v":"platí od 31.8.2025"},null,null,null,null,null,null,null,"informace: 381256366",null,null,null,null,null,null,null,null,null,null,null,null,13]
["COMETT PLUS, spol.s r.o.,Chýnovská 2115,Tábor 39002,mhd@comettplus.cz"]
["Linka : ",null,"395013",null,null,null,null,"Zastávka:",null,null,{"$f":"E9","v":"Planá n.Lužnicí Masokomb. točna"}]
[null,null,"pásmo ","minut. vzdál."]
[0,null,"C",null,{"$f":"'Planá n.Lužnicí, Strkov'!$E$5","v":"Planá n.Lužnicí Strkov"},null,null,null,null,null,"Pracovní dny",null,null,null,null,null,null,null,null,"Soboty",null,null,null,"neděle + svátky",null,null,null,"Pracovní dny - omezení dopravy MHD"]
[1,null,"C",null,"Planá n.Lužnicí Strkovská ",null,null,null,null,null,null,"minuty",null,null,null,null,null,null,null,"minuty",null,null,null,"minuty",null,null,null,{"$f":"platnost!$A$2","v":"    od 30.června do 29.srpna"}]
[2,null,"C",null,{"$f":"'Planá n.Lužnicí, Strkov'!$E$7","v":"Planá n.Lužnicí náměstí"},null,null,null,null,null,0,null,null,null,null,null,null,null,null,"G46",null,null,null,"46"]
[1,null,"C",null,"Planá n.Lužnicí U řadovek",null,null,null,null,null,1]
[2,"V","C",0,{"$f":"'Planá n.Lužnicí, Strkov'!$E$9","v":"Planá n.Lužnicí Masokomb. točna"},null,null,null,null,null,2]
[1,"V","C",{"$f":"+D9+$A10","v":1},{"$f":"'Planá n.Lužnicí, Strkov'!$E$10","v":"Planá n.Lužnicí Masokomb. závod"},null,null,null,null,null,3]
[1,"V","C",{"$f":"+D10+$A11","v":2},{"$f":"'Planá n.Lužnicí, Strkov'!$E$11","v":"Planá n.Lužnicí Madeta"},null,null,null,null,null,4,"B18",null,null,null,null,null,null,null,null,null,null,null,null,null,null,null,"B18"]
[1,"V","C",3,{"$f":"'Planá n.Lužnicí, Strkov'!$E$12","v":"Planá n.Lužnicí hřbitov"},null,null,null,null,null,5,"03 23 ",null,null,null,null,null,null,null,"09",null,null,null,"09",null,null,null,"03 23 "]
[2,"V","C,B",5,{"$f":"'Planá n.Lužnicí, Strkov'!$E$13","v":"Planá n.Lužnicí Silon"},null,null,null,null,null,6,"13 33 ",null,null,null,null,null,null,null,"08 33 ",null,null,null,"08 33 ",null,null,null,"13 33 "]
[1,"V","B",6,{"$f":"'Planá n.Lužnicí, Strkov'!$E$14","v":"Sezimovo Ústí II Kovosvit"},null,null,null,null,null,7,"08 38 ",null,null,null,null,null,null,null,28,null,null,null,28,null,null,null,"08 38 "]
[5,"V","B",11,"sídl. Nad Lužnicí E 55",null,null,null,null,null,8,53,null,null,null,null,null,null,null,"21 53",null,null,null,"21 53",null,null,null,53]
[2,"V","B",{"$f":"[1]platnost!$G$29","v":"K"},{"$f":"'Planá n.Lužnicí, Strkov'!$E$16","v":"Sezimovo Ústí I rozcestí"},null,null,null,null,null,9,"45",null,null,null,null,null,null,null,43,null,null,null,43,null,null,null,"45"]
[1,"V","B",{"$f":"[1]platnost!$G$29","v":"K"},{"$f":"'Planá n.Lužnicí, Strkov'!$E$17","v":"Sezimovo Ústí I náměstí"},null,null,null,null,null,10,46,null,null,null,null,null,null,null,43,null,null,null,43,null,null,null,49]
[2,"V","B",{"$f":"[1]platnost!$G$29","v":"K"},{"$f":"'Planá n.Lužnicí, Strkov'!$E$18","v":"sídl. Nad Lužnicí "},null,null,null,null,null,11,"50",null,null,null,null,null,null,null,33,null,null,null,33,null,null,null,"50"]
[3,"V","B,A",{"$f":"+D15+$A19","v":14},{"$f":"'Planá n.Lužnicí, Strkov'!$E$19","v":"Nový hřbitov"},null,null,null,null,null,12,null,null,null,null,null,null,null,null,"16 58 ",null,null,null,"16 58 "]
[1,"V","A",{"$f":"+D19+$A20","v":15},{"$f":"'Planá n.Lužnicí, Strkov'!$E$20","v":"Na Kopečku"},null,null,null,null,null,13,18,null,null,null,null,null,null,null,"36",null,null,null,"36",null,null,null,18]
[2,"V","A",17,{"$f":"'Planá n.Lužnicí, Strkov'!$E$21","v":"Černé mosty"},null,null,null,null,null,14,"05 48 ",null,null,null,null,null,null,null,23,null,null,null,23,null,null,null,"05 48 "]
[2,"V","A",19,{"$f":"'Planá n.Lužnicí, Strkov'!$E$22","v":"Autobusové nádraží"},null,null,null,null,null,15," ",null,null,null,null,null,null,null,"11 48",null,null,null,"11 48"]
[2,"V","A",21,{"$f":"'Planá n.Lužnicí, Strkov'!$E$23","v":"Poliklinika"},null,null,null,null,null,16,"03 25",null,null,null,null,null,null,null,"41",null,null,null,"41",null,null,null,"03 25"]
[2,"V","A",23,{"$f":"'Planá n.Lužnicí, Strkov'!$E$24","v":"U Reálky"},null,null,null,null,null,17,23,null,null,null,null,null,null,null,38,null,null,null,38,null,null,null,23]
[2,"V","A",25,{"$f":"'Planá n.Lužnicí, Strkov'!$E$25","v":"Písecké rozcestí"},null,null,null,null,null,18,"08",null,null,null,null,null,null,null,"08 58 ",null,null,null,"08 58 ",null,null,null,"08"]
[2,"V","A",27,{"$f":"'Planá n.Lužnicí, Strkov'!$E$26","v":"Nemocnice"},null,null,null,null,null,19,38,null,null,null,null,null,null,null,null,null,null,null,null,null,null,null,38]
[2,"V","A",29,{"$f":"'Planá n.Lužnicí, Strkov'!$E$27","v":"Klokoty"},null,null,null,null,null,20,null,null,null,null,null,null,null,null,"01 43",null,null,null,"01 43"]
[1,"V","A",30,{"$f":"'Planá n.Lužnicí, Strkov'!$E$28","v":"Klokoty točna"},null,null,null,null,null,21,"B13 38 ",null,null,null,null,null,null,null,28,null,null,null,28,null,null,null,"38 "]
[null,null,{"$f":"platnost!$A29","v":"jízdné 16,- Kč"},null,null,"platí 10 minut",null,null,null,null,22,"16 51",null,null,null,null,null,null,null,"08 51",null,null,null,"08 51",null,null,null,"16 51"]
[null,null,{"$f":"platnost!$A30","v":"jízdné 20,- Kč"},null,null,"platí 20 minut",null,null,null,null,23,"14",null,null,null,null,null,null,null,"33",null,null,null,"33",null,null,null,"14"]
[null,null,{"$f":"platnost!$A31","v":"jízdné 24,- Kč"},null,null,"platí 60 minut"]
[null,null,null,null,null,null,null,null,null,null,"Vysvětlivky:",null,null,{"$f":"platnost!$G$26","v":"G - nejede 19.4.2025"}]
[null,null,null,null,null,null,null,null,null,null,null,null,null,{"$f":"platnost!$G$23","v":"POZOR - zastávka Nový hřbitov NA ZNAMENÍ"}]
[null,null,null,null,null,null,null,null,null,null,null,null,null,"B - po dobu uzavírky spoj obsluhuje Sezimovo Ústí I náměstí"]
[]
[null,null,null,null,null,null,null,null,null,null,null,null,null,{"$f":"platnost!$G$22","v":"Všechny spoje s bezbariérově přístupným vozidlem"}]

{"sheet":"Planá n.Lužnicí, Masokomb.záv.","index":6,"n_rows":35,"n_cols":28,"rows_kept":35,"cut":false,"hidden":false,"merged":[[0,24,3,27]]}
["Platnost:",null,null,{"$f":"platnost!$A$1","v":"platí od 31.8.2025"},null,null,null,null,null,null,null,"informace: 381256366",null,null,null,null,null,null,null,null,null,null,null,null,13]
["COMETT PLUS, spol.s r.o.,Chýnovská 2115,Tábor 39002,mhd@comettplus.cz"]
["Linka : ",null," 395013",null,null,null,null,"Zastávka:",null,null,{"$f":"E10","v":"Planá n.Lužnicí Masokomb. závod"}]
[null,null,"pásmo ","minut. vzdál."]
[0,null,"C",null,{"$f":"'Planá n.Lužnicí, Strkov'!$E$5","v":"Planá n.Lužnicí Strkov"},null,null,null,null,null,"Pracovní dny",null,null,null,null,null,null,null,null,"Soboty",null,null,null,"neděle + svátky",null,null,null,"Pracovní dny - omezení dopravy MHD"]
[1,null,"C",null,"Planá n.Lužnicí Strkovská ",null,null,null,null,null,null,"minuty",null,null,null,null,null,null,null,"minuty",null,null,null,"minuty",null,null,null,{"$f":"platnost!$A$2","v":"    od 30.června do 29.srpna"}]
[2,null,"C",null,{"$f":"'Planá n.Lužnicí, Strkov'!$E$7","v":"Planá n.Lužnicí náměstí"},null,null,null,null,null,0,null,null,null,null,null,null,null,null,"G47",null,null,null,"47"]
[2,null,"C",null,"Planá n.Lužnicí U řadovek",null,null,null,null,null,1]
[2,null,"C",null,{"$f":"'Planá n.Lužnicí, Strkov'!$E$9","v":"Planá n.Lužnicí Masokomb. točna"},null,null,null,null,null,2]
[1,"V","C",0,{"$f":"'Planá n.Lužnicí, Strkov'!$E$10","v":"Planá n.Lužnicí Masokomb. závod"},null,null,null,null,null,3]
[1,"V","C",{"$f":"+D10+$A11","v":1},{"$f":"'Planá n.Lužnicí, Strkov'!$E$11","v":"Planá n.Lužnicí Madeta"},null,null,null,null,null,4,"B19",null,null,null,null,null,null,null,null,null,null,null,null,null,null,null,"B19"]
[1,"V","C",2,{"$f":"'Planá n.Lužnicí, Strkov'!$E$12","v":"Planá n.Lužnicí hřbitov"},null,null,null,null,null,5,"04 24 ",null,null,null,null,null,null,null,"10",null,null,null,"10",null,null,null,"04 24 "]
[2,"V","C,B",4,{"$f":"'Planá n.Lužnicí, Strkov'!$E$13","v":"Planá n.Lužnicí Silon"},null,null,null,null,null,6,"14 34 ",null,null,null,null,null,null,null,"09 34 ",null,null,null,"09 34 ",null,null,null,"14 34 "]
[1,"V","B",5,{"$f":"'Planá n.Lužnicí, Strkov'!$E$14","v":"Sezimovo Ústí II Kovosvit"},null,null,null,null,null,7,"09 39 ",null,null,null,null,null,null,null,29,null,null,null,29,null,null,null,"09 39 "]
[5,"V","B",10,"sídl. Nad Lužnicí E 55",null,null,null,null,null,8,54,null,null,null,null,null,null,null,"22 54",null,null,null,"22 54",null,null,null,54]
[2,"V","B",{"$f":"[1]platnost!$G$29","v":"K"},{"$f":"'Planá n.Lužnicí, Strkov'!$E$16","v":"Sezimovo Ústí I rozcestí"},null,null,null,null,null,9,"46",null,null,null,null,null,null,null,44,null,null,null,44,null,null,null,"46"]
[1,"V","B",{"$f":"[1]platnost!$G$29","v":"K"},{"$f":"'Planá n.Lužnicí, Strkov'!$E$17","v":"Sezimovo Ústí I náměstí"},null,null,null,null,null,10,47,null,null,null,null,null,null,null,44,null,null,null,44,null,null,null,50]
[2,"V","B",{"$f":"[1]platnost!$G$29","v":"K"},{"$f":"'Planá n.Lužnicí, Strkov'!$E$18","v":"sídl. Nad Lužnicí "},null,null,null,null,null,11,"51",null,null,null,null,null,null,null,34,null,null,null,34,null,null,null,"51"]
[3,"V","B,A",{"$f":"+D15+$A19","v":13},{"$f":"'Planá n.Lužnicí, Strkov'!$E$19","v":"Nový hřbitov"},null,null,null,null,null,12,null,null,null,null,null,null,null,null,"17 59 ",null,null,null,"17 59 "]
[1,"V","A",{"$f":"+D19+$A20","v":14},{"$f":"'Planá n.Lužnicí, Strkov'!$E$20","v":"Na Kopečku"},null,null,null,null,null,13,19,null,null,null,null,null,null,null,"37",null,null,null,"37",null,null,null,19]
[2,"V","A",16,{"$f":"'Planá n.Lužnicí, Strkov'!$E$21","v":"Černé mosty"},null,null,null,null,null,14,"06 49 ",null,null,null,null,null,null,null,24,null,null,null,24,null,null,null,"06 49 "]
[2,"V","A",18,{"$f":"'Planá n.Lužnicí, Strkov'!$E$22","v":"Autobusové nádraží"},null,null,null,null,null,15," ",null,null,null,null,null,null,null,"12 49",null,null,null,"12 49",null,null,null," "]
[2,"V","A",20,{"$f":"'Planá n.Lužnicí, Strkov'!$E$23","v":"Poliklinika"},null,null,null,null,null,16,"04 26",null,null,null,null,null,null,null,"42",null,null,null,"42",null,null,null,"04 26"]
[2,"V","A",22,{"$f":"'Planá n.Lužnicí, Strkov'!$E$24","v":"U Reálky"},null,null,null,null,null,17,24,null,null,null,null,null,null,null,39,null,null,null,39,null,null,null,24]
[2,"V","A",24,{"$f":"'Planá n.Lužnicí, Strkov'!$E$25","v":"Písecké rozcestí"},null,null,null,null,null,18,"09",null,null,null,null,null,null,null,"09 59 ",null,null,null,"09 59 ",null,null,null,"09"]
[2,"V","A",26,{"$f":"'Planá n.Lužnicí, Strkov'!$E$26","v":"Nemocnice"},null,null,null,null,null,19,39,null,null,null,null,null,null,null,null,null,null,null,null,null,null,null,39]
[2,"V","A",28,{"$f":"'Planá n.Lužnicí, Strkov'!$E$27","v":"Klokoty"},null,null,null,null,null,20,null,null,null,null,null,null,null,null,"02 44",null,null,null,"02 44"]
[1,"V","A",29,{"$f":"'Planá n.Lužnicí, Strkov'!$E$28","v":"Klokoty točna"},null,null,null,null,null,21,"B14 39 ",null,null,null,null,null,null,null,29,null,null,null,29,null,null,null,39]
[null,null,{"$f":"platnost!$A29","v":"jízdné 16,- Kč"},null,null,"platí 10 minut",null,null,null,null,22,"17 52",null,null,null,null,null,null,null,"09 52",null,null,null,"09 52",null,null,null,"17 52"]
[null,null,{"$f":"platnost!$A30","v":"jízdné 20,- Kč"},null,null,"platí 20 minut",null,null,null,null,23,"15",null,null,null,null,null,null,null,"34",null,null,null,"34",null,null,null,"15"]
[null,null,{"$f":"platnost!$A31","v":"jízdné 24,- Kč"},null,null,"platí 60 minut"]
[null,null,null,null,null,null,null,null,null,null,"Vysvětlivky:",null,null,{"$f":"platnost!$G$26","v":"G - nejede 19.4.2025"}]
[null,null,null,null,null,null,null,null,null,null,null,null,null,{"$f":"platnost!$G$23","v":"POZOR - zastávka Nový hřbitov NA ZNAMENÍ"}]
[null,null,null,null,null,null,null,null,null,null,null,null,null,"B - po dobu uzavírky spoj obsluhuje Sezimovo Ústí I náměstí"]
[null,null,null,null,null,null,null,null,null,null,null,null,null,{"$f":"platnost!$G$22","v":"Všechny spoje s bezbariérově přístupným vozidlem"}]

{"sheet":"Planá n.Lužnicí,Madeta","index":7,"n_rows":35,"n_cols":28,"rows_kept":35,"cut":false,"hidden":false,"merged":[[0,24,3,27]]}
["Platnost:",null,null,{"$f":"platnost!$A$1","v":"platí od 31.8.2025"},null,null,null,null,null,null,null,"informace: 381256366",null,null,null,null,null,null,null,null,null,null,null,null,13]
["COMETT PLUS, spol.s r.o.,Chýnovská 2115,Tábor 39002,mhd@comettplus.cz"]
["Linka : ",null,"395013",null,null,null,null,"Zastávka:",null,null,{"$f":"E11","v":"Planá n.Lužnicí Madeta"}]
[null,null,"pásmo ","minut. vzdál."]
[0,null,"C",null,{"$f":"'Planá n.Lužnicí, Strkov'!$E$5","v":"Planá n.Lužnicí Strkov"},null,null,null,null,null,"Pracovní dny",null,null,null,null,null,null,null,null,"Soboty",null,null,null,"neděle + svátky",null,null,null,"Pracovní dny - omezení dopravy MHD"]
[0,null,"C",null,"Planá n.Lužnicí Strkovská ",null,null,null,null,null,"Hod","minuty",null,null,null,null,null,null,null,"minuty",null,null,null,"minuty",null,null,null,{"$f":"platnost!$A$2","v":"    od 30.června do 29.srpna"}]
[3,null,"C",null,{"$f":"'Planá n.Lužnicí, Strkov'!$E$7","v":"Planá n.Lužnicí náměstí"},null,null,null,null,null,0,null,null,null,null,null,null,null,null,"G48",null,null,null,"48"]
[1,null,"C",null,"Planá n.Lužnicí U řadovek",null,null,null,null,null,1]
[1,null,"C",null,{"$f":"'Planá n.Lužnicí, Strkov'!$E$9","v":"Planá n.Lužnicí Masokomb. točna"},null,null,null,null,null,2,null,null,null,null,null,null,null,null,"57",null,null,null,57]
[1,null,"C",null,{"$f":"'Planá n.Lužnicí, Strkov'!$E$10","v":"Planá n.Lužnicí Masokomb. závod"},null,null,null,null,null,3]
[1,"V","C",0,{"$f":"'Planá n.Lužnicí, Strkov'!$E$11","v":"Planá n.Lužnicí Madeta"},null,null,null,null,null,4,"B20",null,null,null,null,null,null,null,null,null,null,null,null,null,null,null,"B20"]
[1,"V","C",{"$f":"+D11+$A12","v":1},{"$f":"'Planá n.Lužnicí, Strkov'!$E$12","v":"Planá n.Lužnicí hřbitov"},null,null,null,null,null,5,"05 25 ",null,null,null,null,null,null,null,"11",null,null,null,"11",null,null,null,"05 25 "]
[2,"V","C,B",{"$f":"+D12+$A13","v":3},{"$f":"'Planá n.Lužnicí, Strkov'!$E$13","v":"Planá n.Lužnicí Silon"},null,null,null,null,null,6,"15 35 ",null,null,null,null,null,null,null,"10 35 ",null,null,null,"10 35 ",null,null,null,"15 35 "]
[1,"V","B",4,{"$f":"'Planá n.Lužnicí, Strkov'!$E$14","v":"Sezimovo Ústí II Kovosvit"},null,null,null,null,null,7,"10 40 ",null,null,null,null,null,null,null,30,null,null,null,30,null,null,null,"10 40 "]
[5,"V","B",9,"sídl. Nad Lužnicí E 55",null,null,null,null,null,8,55,null,null,null,null,null,null,null,"23 55",null,null,null,"23 55",null,null,null,55]
[2,"V","B",{"$f":"[1]platnost!$G$29","v":"K"},{"$f":"'Planá n.Lužnicí, Strkov'!$E$16","v":"Sezimovo Ústí I rozcestí"},null,null,null,null,null,9,"47",null,null,null,null,null,null,null,45,null,null,null,45,null,null,null,"47"]
[1,"V","B",{"$f":"[1]platnost!$G$29","v":"K"},{"$f":"'Planá n.Lužnicí, Strkov'!$E$17","v":"Sezimovo Ústí I náměstí"},null,null,null,null,null,10,48,null,null,null,null,null,null,null,45,null,null,null,45,null,null,null,51]
[2,"V","B",{"$f":"[1]platnost!$G$29","v":"K"},{"$f":"'Planá n.Lužnicí, Strkov'!$E$18","v":"sídl. Nad Lužnicí "},null,null,null,null,null,11,"52",null,null,null,null,null,null,null,35,null,null,null,35,null,null,null,"52"]
[3,"V","B,A",{"$f":"+D15+$A19","v":12},{"$f":"'Planá n.Lužnicí, Strkov'!$E$19","v":"Nový hřbitov"},null,null,null,null,null,12,null,null,null,null,null,null,null,null,"18",null,null,null,"18"]
[1,"V","A",{"$f":"+D19+$A20","v":13},{"$f":"'Planá n.Lužnicí, Strkov'!$E$20","v":"Na Kopečku"},null,null,null,null,null,13,20,null,null,null,null,null,null,null,"00 38",null,null,null,"00 38",null,null,null,20]
[2,"V","A",15,{"$f":"'Planá n.Lužnicí, Strkov'!$E$21","v":"Černé mosty"},null,null,null,null,null,14,"07 50 ",null,null,null,null,null,null,null,25,null,null,null,25,null,null,null,"07 50 "]
[2,"V","A",17,{"$f":"'Planá n.Lužnicí, Strkov'!$E$22","v":"Autobusové nádraží"},null,null,null,null,null,15,null,null,null,null,null,null,null,null,"13 50",null,null,null,"13 50"]
[2,"V","A",19,{"$f":"'Planá n.Lužnicí, Strkov'!$E$23","v":"Poliklinika"},null,null,null,null,null,16,"05 27",null,null,null,null,null,null,null,"43",null,null,null,"43",null,null,null,"05 27"]
[2,"V","A",21,{"$f":"'Planá n.Lužnicí, Strkov'!$E$24","v":"U Reálky"},null,null,null,null,null,17,25,null,null,null,null,null,null,null,40,null,null,null,40,null,null,null,25]
[2,"V","A",23,{"$f":"'Planá n.Lužnicí, Strkov'!$E$25","v":"Písecké rozcestí"},null,null,null,null,null,18,10,null,null,null,null,null,null,null,10,null,null,null,10,null,null,null,10]
[2,"V","A",25,{"$f":"'Planá n.Lužnicí, Strkov'!$E$26","v":"Nemocnice"},null,null,null,null,null,19,40,null,null,null,null,null,null,null,"00",null,null,null,"00",null,null,null,40]
[2,"V","A",27,{"$f":"'Planá n.Lužnicí, Strkov'!$E$27","v":"Klokoty"},null,null,null,null,null,20,null,null,null,null,null,null,null,null,"03 45",null,null,null,"03 45"]
[1,"V","A",28,{"$f":"'Planá n.Lužnicí, Strkov'!$E$28","v":"Klokoty točna"},null,null,null,null,null,21,"B15 40 ",null,null,null,null,null,null,null,30,null,null,null,30,null,null,null,"40 "]
[null,null,{"$f":"platnost!$A29","v":"jízdné 16,- Kč"},null,null,"platí 10 minut",null,null,null,null,22,"18 53",null,null,null,null,null,null,null,"10 53",null,null,null,"10 53",null,null,null,"18 53"]
[null,null,{"$f":"platnost!$A30","v":"jízdné 20,- Kč"},null,null,"platí 20 minut",null,null,null,null,23,"16",null,null,null,null,null,null,null,"35",null,null,null,"35",null,null,null,"16"]
[null,null,{"$f":"platnost!$A31","v":"jízdné 24,- Kč"},null,null,"platí 60 minut"]
[null,null,null,null,null,null,null,null,null,null,"Vysvětlivky:",null,null,{"$f":"platnost!$G$26","v":"G - nejede 19.4.2025"}]
[null,null,null,null,null,null,null,null,null,null,null,null,null,{"$f":"platnost!$G$23","v":"POZOR - zastávka Nový hřbitov NA ZNAMENÍ"}]
[null,null,null,null,null,null,null,null,null,null,null,null,null,"B - po dobu uzavírky spoj obsluhuje Sezimovo Ústí I náměstí"]
[null,null,null,null,null,null,null,null,null,null,null,null,null,{"$f":"platnost!$G$22","v":"Všechny spoje s bezbariérově přístupným vozidlem"}]

{"sheet":"Planá n.Lužnicí, hřbitov","index":8,"n_rows":35,"n_cols":28,"rows_kept":35,"cut":false,"hidden":false,"merged":[[0,24,3,27]]}
["Platnost:",null,null,{"$f":"platnost!$A$1","v":"platí od 31.8.2025"},null,null,null,null,null,null,null,"informace: 381256366",null,null,null,null,null,null,null,null,null,null,null,null,13]
["COMETT PLUS, spol.s r.o.,Chýnovská 2115,Tábor 39002,mhd@comettplus.cz"]
["Linka : ",null,"395013",null,null,null,null,"Zastávka:",null,null,{"$f":"E12","v":"Planá n.Lužnicí hřbitov"}]
[0,null,"pásmo ","minut. vzdál."]
[0,null,"C",null,{"$f":"'Planá n.Lužnicí, Strkov'!$E$5","v":"Planá n.Lužnicí Strkov"},null,null,null,null,null,"Pracovní dny",null,null,null,null,null,null,null,null,"Soboty",null,null,null,"neděle + svátky",null,null,null,"Pracovní dny - omezení dopravy MHD"]
[3,null,"C",null,"Planá n.Lužnicí Strkovská ",null,null,null,null,null,"Hod","minuty",null,null,null,null,null,null,null,"minuty",null,null,null,"minuty",null,null,null,{"$f":"platnost!$A$2","v":"    od 30.června do 29.srpna"}]
[1,null,"C",null,{"$f":"'Planá n.Lužnicí, Strkov'!$E$7","v":"Planá n.Lužnicí náměstí"},null,null,null,null,null,0,null,null,null,null,null,null,null,null,"G49",null,null,null,"49"]
[1,null,"C",null,"Planá n.Lužnicí U řadovek",null,null,null,null,null,1]
[1,null,"C",null,{"$f":"'Planá n.Lužnicí, Strkov'!$E$9","v":"Planá n.Lužnicí Masokomb. točna"},null,null,null,null,null,2,null,null,null,null,null,null,null,null,"58",null,null,null,58]
[2,null,"C",null,{"$f":"'Planá n.Lužnicí, Strkov'!$E$10","v":"Planá n.Lužnicí Masokomb. závod"},null,null,null,null,null,3]
[1,null,"C",null,{"$f":"'Planá n.Lužnicí, Strkov'!$E$11","v":"Planá n.Lužnicí Madeta"},null,null,null,null,null,4,"B21",null,null,null,null,null,null,null,null,null,null,null,null,null,null,null,"B21"]
[1,"V","C",0,{"$f":"'Planá n.Lužnicí, Strkov'!$E$12","v":"Planá n.Lužnicí hřbitov"},null,null,null,null,null,5,"06 26 ",null,null,null,null,null,null,null,"12",null,null,null,"12",null,null,null,"06 26 "]
[2,"V","C,B",{"$f":"+D12+$A13","v":2},{"$f":"'Planá n.Lužnicí, Strkov'!$E$13","v":"Planá n.Lužnicí Silon"},null,null,null,null,null,6,"16 36 ",null,null,null,null,null,null,null,"11 36 ",null,null,null,"11 36 ",null,null,null,"16 36 "]
[1,"V","B",{"$f":"+D13+$A14","v":3},{"$f":"'Planá n.Lužnicí, Strkov'!$E$14","v":"Sezimovo Ústí II Kovosvit"},null,null,null,null,null,7,"11 41 ",null,null,null,null,null,null,null,31,null,null,null,31,null,null,null,"11 41 "]
[5,"V","B",8,"sídl. Nad Lužnicí E 55",null,null,null,null,null,8,56,null,null,null,null,null,null,null,"24 56",null,null,null,"24 56",null,null,null,56]
[2,"V","B",{"$f":"[1]platnost!$G$29","v":"K"},{"$f":"'Planá n.Lužnicí, Strkov'!$E$16","v":"Sezimovo Ústí I rozcestí"},null,null,null,null,null,9,"48",null,null,null,null,null,null,null,46,null,null,null,46,null,null,null,"48"]
[1,"V","B",{"$f":"[1]platnost!$G$29","v":"K"},{"$f":"'Planá n.Lužnicí, Strkov'!$E$17","v":"Sezimovo Ústí I náměstí"},null,null,null,null,null,10,49,null,null,null,null,null,null,null,46,null,null,null,46,null,null,null,52]
[2,"V","B",{"$f":"[1]platnost!$G$29","v":"K"},{"$f":"'Planá n.Lužnicí, Strkov'!$E$18","v":"sídl. Nad Lužnicí "},null,null,null,null,null,11,"53",null,null,null,null,null,null,null,36,null,null,null,36,null,null,null,"53"]
[3,"V","B,A",{"$f":"+D15+$A19","v":11},{"$f":"'Planá n.Lužnicí, Strkov'!$E$19","v":"Nový hřbitov"},null,null,null,null,null,12,null,null,null,null,null,null,null,null,"19",null,null,null,"19"]
[1,"V","A",{"$f":"+D19+$A20","v":12},{"$f":"'Planá n.Lužnicí, Strkov'!$E$20","v":"Na Kopečku"},null,null,null,null,null,13,21,null,null,null,null,null,null,null,"01 39",null,null,null,"01 39",null,null,null,21]
[2,"V","A",14,{"$f":"'Planá n.Lužnicí, Strkov'!$E$21","v":"Černé mosty"},null,null,null,null,null,14,"08 51 ",null,null,null,null,null,null,null,26,null,null,null,26,null,null,null,"08 51 "]
[2,"V","A",16,{"$f":"'Planá n.Lužnicí, Strkov'!$E$22","v":"Autobusové nádraží"},null,null,null,null,null,15,null,null,null,null,null,null,null,null,"14 51",null,null,null,"14 51"]
[2,"V","A",18,{"$f":"'Planá n.Lužnicí, Strkov'!$E$23","v":"Poliklinika"},null,null,null,null,null,16,"06 28",null,null,null,null,null,null,null,"44",null,null,null,"44",null,null,null,"06 28"]
[2,"V","A",20,{"$f":"'Planá n.Lužnicí, Strkov'!$E$24","v":"U Reálky"},null,null,null,null,null,17,26,null,null,null,null,null,null,null,41,null,null,null,41,null,null,null,26]
[2,"V","A",22,{"$f":"'Planá n.Lužnicí, Strkov'!$E$25","v":"Písecké rozcestí"},null,null,null,null,null,18,11,null,null,null,null,null,null,null,11,null,null,null,11,null,null,null,11]
[2,"V","A",24,{"$f":"'Planá n.Lužnicí, Strkov'!$E$26","v":"Nemocnice"},null,null,null,null,null,19,41,null,null,null,null,null,null,null,"01",null,null,null,"01",null,null,null,41]
[2,"V","A",26,{"$f":"'Planá n.Lužnicí, Strkov'!$E$27","v":"Klokoty"},null,null,null,null,null,20,null,null,null,null,null,null,null,null,"04 46",null,null,null,"04 46"]
[1,"V","A",27,{"$f":"'Planá n.Lužnicí, Strkov'!$E$28","v":"Klokoty točna"},null,null,null,null,null,21,"B16 41 ",null,null,null,null,null,null,null,31,null,null,null,31,null,null,null,"41 "]
[null,null,{"$f":"platnost!$A29","v":"jízdné 16,- Kč"},null,null,"platí 10 minut",null,null,null,null,22,"19 54",null,null,null,null,null,null,null,"11 54",null,null,null,"11 54",null,null,null,"19 54"]
[null,null,{"$f":"platnost!$A30","v":"jízdné 20,- Kč"},null,null,"platí 20 minut",null,null,null,null,23,"17",null,null,null,null,null,null,null,"36",null,null,null,"36",null,null,null,"17"]
[null,null,{"$f":"platnost!$A31","v":"jízdné 24,- Kč"},null,null,"platí 60 minut"]
[null,null,null,null,null,null,null,null,null,null,"Vysvětlivky:",null,null,{"$f":"platnost!$G$26","v":"G - nejede 19.4.2025"}]
[null,null,null,null,null,null,null,null,null,null,null,null,null,{"$f":"platnost!$G$23","v":"POZOR - zastávka Nový hřbitov NA ZNAMENÍ"}]
[null,null,null,null,null,null,null,null,null,null,null,null,null,"B - po dobu uzavírky spoj obsluhuje Sezimovo Ústí I náměstí"]
[null,null,null,null,null,null,null,null,null,null,null,null,null,{"$f":"platnost!$G$22","v":"Všechny spoje s bezbariérově přístupným vozidlem"}]

{"sheet":"Planá n.Lužnicí,Silon a.s.","index":9,"n_rows":35,"n_cols":28,"rows_kept":35,"cut":false,"hidden":false,"merged":[[0,24,3,27]]}
["Platnost:",null,null,{"$f":"platnost!$A$1","v":"platí od 31.8.2025"},null,null,null,null,null,null,null,"informace: 381256366",null,null,null,null,null,null,null,null,null,null,null,null,13]
["COMETT PLUS, spol.s r.o.,Chýnovská 2115,Tábor 39002,mhd@comettplus.cz"]
["Linka : ",null,"395013",null,null,null,null,"Zastávka:",null,null,{"$f":"E13","v":"Planá n.Lužnicí Silon"}]
[null,null,"pásmo ","minut. vzdál."]
[0,null,"C",null,{"$f":"'Planá n.Lužnicí, Strkov'!$E$5","v":"Planá n.Lužnicí Strkov"},null,null,null,null,null,"Pracovní dny",null,null,null,null,null,null,null,null,"Soboty",null,null,null,"neděle + svátky",null,null,null,"Pracovní dny - omezení dopravy MHD"]
[0,null,"C",null,"Planá n.Lužnicí Strkovská ",null,null,null,null,null,"Hod","minuty",null,null,null,null,null,null,null,"minuty",null,null,null,"minuty",null,null,null,{"$f":"platnost!$A$2","v":"    od 30.června do 29.srpna"}]
[3,null,"C",null,{"$f":"'Planá n.Lužnicí, Strkov'!$E$7","v":"Planá n.Lužnicí náměstí"},null,null,null,null,null,0,null,null,null,null,null,null,null,null,"G51",null,null,null,"51"]
[1,null,"C",null,"Planá n.Lužnicí U řadovek",null,null,null,null,null,1]
[1,null,"C",null,{"$f":"'Planá n.Lužnicí, Strkov'!$E$9","v":"Planá n.Lužnicí Masokomb. točna"},null,null,null,null,null,2,null,null,null,null,null,null,null,null,"59",null,null,null,59]
[1,null,"C",null,{"$f":"'Planá n.Lužnicí, Strkov'!$E$10","v":"Planá n.Lužnicí Masokomb. závod"},null,null,null,null,null,3]
[1,null,"C",null,{"$f":"'Planá n.Lužnicí, Strkov'!$E$11","v":"Planá n.Lužnicí Madeta"},null,null,null,null,null,4,"B23",null,null,null,null,null,null,null,null,null,null,null,null,null,null,null,"B23"]
[1,null,"C",null,{"$f":"'Planá n.Lužnicí, Strkov'!$E$12","v":"Planá n.Lužnicí hřbitov"},null,null,null,null,null,5,"08 28",null,null,null,null,null,null,null,"14",null,null,null,"14",null,null,null,"08 28 "]
[2,"V","C,B",0,{"$f":"'Planá n.Lužnicí, Strkov'!$E$13","v":"Planá n.Lužnicí Silon"},null,null,null,null,null,6,"18 38 ",null,null,null,null,null,null,null,"13 38 ",null,null,null,"13 38 ",null,null,null,"18 38 "]
[1,"V","B",{"$f":"+D13+$A14","v":1},{"$f":"'Planá n.Lužnicí, Strkov'!$E$14","v":"Sezimovo Ústí II Kovosvit"},null,null,null,null,null,7,"13 43 ",null,null,null,null,null,null,null,33,null,null,null,33,null,null,null,"13 43 "]
[5,"V","B",{"$f":"+D14+$A15","v":6},"sídl. Nad Lužnicí E 55",null,null,null,null,null,8,58,null,null,null,null,null,null,null,"26 58",null,null,null,"26 58",null,null,null,58]
[2,"V","B",{"$f":"[1]platnost!$G$29","v":"K"},{"$f":"'Planá n.Lužnicí, Strkov'!$E$16","v":"Sezimovo Ústí I rozcestí"},null,null,null,null,null,9,"50",null,null,null,null,null,null,null,48,null,null,null,48,null,null,null,"50"]
[1,"V","B",{"$f":"[1]platnost!$G$29","v":"K"},{"$f":"'Planá n.Lužnicí, Strkov'!$E$17","v":"Sezimovo Ústí I náměstí"},null,null,null,null,null,10,51,null,null,null,null,null,null,null,48,null,null,null,48,null,null,null,"54"]
[2,"V","B",{"$f":"[1]platnost!$G$29","v":"K"},{"$f":"'Planá n.Lužnicí, Strkov'!$E$18","v":"sídl. Nad Lužnicí "},null,null,null,null,null,11,"55",null,null,null,null,null,null,null,38,null,null,null,38,null,null,null,"55"]
[3,"V","B,A",{"$f":"+D15+$A19","v":9},{"$f":"'Planá n.Lužnicí, Strkov'!$E$19","v":"Nový hřbitov"},null,null,null,null,null,12,null,null,null,null,null,null,null,null,"21",null,null,null,"21"]
[1,"V","A",{"$f":"+D19+$A20","v":10},{"$f":"'Planá n.Lužnicí, Strkov'!$E$20","v":"Na Kopečku"},null,null,null,null,null,13,23,null,null,null,null,null,null,null,"03 41",null,null,null,"03 41",null,null,null,23]
[2,"V","A",12,{"$f":"'Planá n.Lužnicí, Strkov'!$E$21","v":"Černé mosty"},null,null,null,null,null,14,"10 53 ",null,null,null,null,null,null,null,28,null,null,null,28,null,null,null,"10 53 "]
[2,"V","A",14,{"$f":"'Planá n.Lužnicí, Strkov'!$E$22","v":"Autobusové nádraží"},null,null,null,null,null,15,null,null,null,null,null,null,null,null,"16 53",null,null,null,"16 53"]
[2,"V","A",16,{"$f":"'Planá n.Lužnicí, Strkov'!$E$23","v":"Poliklinika"},null,null,null,null,null,16,"08 30",null,null,null,null,null,null,null,"46",null,null,null,"46",null,null,null,"08 30"]
[2,"V","A",18,{"$f":"'Planá n.Lužnicí, Strkov'!$E$24","v":"U Reálky"},null,null,null,null,null,17,28,null,null,null,null,null,null,null,43,null,null,null,43,null,null,null,28]
[2,"V","A",20,{"$f":"'Planá n.Lužnicí, Strkov'!$E$25","v":"Písecké rozcestí"},null,null,null,null,null,18,13,null,null,null,null,null,null,null,13,null,null,null,13,null,null,null,13]
[2,"V","A",22,{"$f":"'Planá n.Lužnicí, Strkov'!$E$26","v":"Nemocnice"},null,null,null,null,null,19,43,null,null,null,null,null,null,null,"03",null,null,null,"03",null,null,null,43]
[2,"V","A",24,{"$f":"'Planá n.Lužnicí, Strkov'!$E$27","v":"Klokoty"},null,null,null,null,null,20,null,null,null,null,null,null,null,null,"06 48",null,null,null,"06 48"]
[1,"V","A",25,{"$f":"'Planá n.Lužnicí, Strkov'!$E$28","v":"Klokoty točna"},null,null,null,null,null,21,"B18 43 ",null,null,null,null,null,null,null,33,null,null,null,33,null,null,null,"43 "]
[null,null,{"$f":"platnost!$A29","v":"jízdné 16,- Kč"},null,null,"platí 10 minut",null,null,null,null,22,"21 56",null,null,null,null,null,null,null,"13 56",null,null,null,"13 56",null,null,null,"21 56"]
[null,null,{"$f":"platnost!$A30","v":"jízdné 20,- Kč"},null,null,"platí 20 minut",null,null,null,null,23,"19",null,null,null,null,null,null,null,"37",null,null,null,"37",null,null,null,"19"]
[null,null,{"$f":"platnost!$A31","v":"jízdné 24,- Kč"},null,null,"platí 60 minut"]
[null,null,null,null,null,null,null,null,null,null,"Vysvětlivky:",null,null,{"$f":"platnost!$G$26","v":"G - nejede 19.4.2025"}]
[null,null,null,null,null,null,null,null,null,null,null,null,null,{"$f":"platnost!$G$23","v":"POZOR - zastávka Nový hřbitov NA ZNAMENÍ"}]
[null,null,null,null,null,null,null,null,null,null,null,null,null,"B - po dobu uzavírky spoj obsluhuje Sezimovo Ústí I náměstí"]
[null,null,null,null,null,null,null,null,null,null,null,null,null,{"$f":"platnost!$G$22","v":"Všechny spoje s bezbariérově přístupným vozidlem"}]

{"sheet":"Sezimovo Ústí II, Kovosvit","index":10,"n_rows":35,"n_cols":29,"rows_kept":35,"cut":false,"hidden":false,"merged":[[0,24,3,27]]}
["Platnost:",null,null,{"$f":"platnost!$A$1","v":"platí od 31.8.2025"},null,null,null,null,null,null,null,"informace: 381256366",null,null,null,null,null,null,null,null,null,null,null,null,13]
["COMETT PLUS, spol.s r.o.,Chýnovská 2115,Tábor 39002,mhd@comettplus.cz"]
["Linka : ",null,"395013",null,null,null,null,"Zastávka:",null,null,{"$f":"E14","v":"Sezimovo Ústí II Kovosvit"}]
[null,null,"pásmo ","minut. vzdál."]
[0,null,"C",null,{"$f":"'Planá n.Lužnicí, Strkov'!$E$5","v":"Planá n.Lužnicí Strkov"},null,null,null,null,null,"Pracovní dny",null,null,null,null,null,null,null,null,"Soboty",null,null,null,"neděle + svátky",null,null,null,"Pracovní dny - omezení dopravy MHD"]
[0,null,"C",null,"Planá n.Lužnicí Strkovská ",null,null,null,null,null,"Hod","minuty",null,null,null,null,null,null,null,"minuty",null,null,null,"minuty",null,null,null,{"$f":"platnost!$A$2","v":"    od 30.června do 29.srpna"}]
[3,null,"C",null,{"$f":"'Planá n.Lužnicí, Strkov'!$E$7","v":"Planá n.Lužnicí náměstí"},null,null,null,null,null,0,null,null,null,null,null,null,null,null,"G52",null,null,null,"52"]
[1,null,"C",null,"Planá n.Lužnicí U řadovek",null,null,null,null,null,1]
[1,null,"C",null,{"$f":"'Planá n.Lužnicí, Strkov'!$E$9","v":"Planá n.Lužnicí Masokomb. točna"},null,null,null,null,null,2]
[1,null,"C",null,{"$f":"'Planá n.Lužnicí, Strkov'!$E$10","v":"Planá n.Lužnicí Masokomb. závod"},null,null,null,null,null,3,null,null,null,null,null,null,null,null,"00",null,null,null,"00"]
[1,null,"C",null,{"$f":"'Planá n.Lužnicí, Strkov'!$E$11","v":"Planá n.Lužnicí Madeta"},null,null,null,null,null,4,"B24",null,null,null,null,null,null,null,null,null,null,null,null,null,null,null,"B24"]
[1,null,"C",null,{"$f":"'Planá n.Lužnicí, Strkov'!$E$12","v":"Planá n.Lužnicí hřbitov"},null,null,null,null,null,5,"09 ",29,null,null,null,null,null,null,"15",null,null,null,"15",null,null,null,"09",29]
[2,null,"C,B",null,{"$f":"'Planá n.Lužnicí, Strkov'!$E$13","v":"Planá n.Lužnicí Silon"},null,null,null,null,null,6,"19 ",39,null,null,null,null,null,null,"14",39,null,null,"14 ",39,null,null,"19",39]
[1,"V","B",0,{"$f":"'Planá n.Lužnicí, Strkov'!$E$14","v":"Sezimovo Ústí II Kovosvit"},null,null,null,null,null,7,"14",44,null,null,null,null,null,null,34,null,null,null,34,null,null,null,"14",44]
[5,"V","B",{"$f":"+D13+$A15","v":5},"sídl. Nad Lužnicí E 55",null,null,null,null,null,8,59,null,null,null,null,null,null,null,"27",59,null,null,"27",59,null,null,59]
[2,"V","B",{"$f":"[1]platnost!$G$29","v":"K"},{"$f":"'Planá n.Lužnicí, Strkov'!$E$16","v":"Sezimovo Ústí I rozcestí"},null,null,null,null,null,9,"51",null,null,null,null,null,null,null,49,null,null,null,49,null,null,null,"51"]
[1,"V","B",{"$f":"[1]platnost!$G$29","v":"K"},{"$f":"'Planá n.Lužnicí, Strkov'!$E$17","v":"Sezimovo Ústí I náměstí"},null,null,null,null,null,10,52,null,null,null,null,null,null,null,49,null,null,null,49,null,null,null,55]
[2,"V","B",{"$f":"[1]platnost!$G$29","v":"K"},{"$f":"'Planá n.Lužnicí, Strkov'!$E$18","v":"sídl. Nad Lužnicí "},null,null,null,null,null,11,"56",null,null,null,null,null,null,null,39,null,null,null,39,null,null,null,"56"]
[3,"V","B,A",{"$f":"+D15+$A19","v":8},{"$f":"'Planá n.Lužnicí, Strkov'!$E$19","v":"Nový hřbitov"},null,null,null,null,null,12,null,null,null,null,null,null,null,null,"22",null,null,null,"22"]
[1,"V","A",{"$f":"+D19+$A20","v":9},{"$f":"'Planá n.Lužnicí, Strkov'!$E$20","v":"Na Kopečku"},null,null,null,null,null,13,24,null,null,null,null,null,null,null,"04",42,null,null,"04",42,null,null,24]
[2,"V","A",11,{"$f":"'Planá n.Lužnicí, Strkov'!$E$21","v":"Černé mosty"},null,null,null,null,null,14,"11",54,null,null,null,null,null,null,29,null,null,null,29,null,null,null,"11",54]
[2,"V","A",13,{"$f":"'Planá n.Lužnicí, Strkov'!$E$22","v":"Autobusové nádraží"},null,null,null,null,null,15,null,null,null,null,null,null,null,null,"17",54,null,null,"17",54]
[2,"V","A",15,{"$f":"'Planá n.Lužnicí, Strkov'!$E$23","v":"Poliklinika"},null,null,null,null,null,16,"09",31,null,null,null,null,null,null,"47",null,null,null,"47",null,null,null,"09",31]
[2,"V","A",17,{"$f":"'Planá n.Lužnicí, Strkov'!$E$24","v":"U Reálky"},null,null,null,null,null,17,29,null,null,null,null,null,null,null,44,null,null,null,44,null,null,null,29]
[2,"V","A",19,{"$f":"'Planá n.Lužnicí, Strkov'!$E$25","v":"Písecké rozcestí"},null,null,null,null,null,18,14,null,null,null,null,null,null,null,14,null,null,null,14,null,null,null,14]
[2,"V","A",21,{"$f":"'Planá n.Lužnicí, Strkov'!$E$26","v":"Nemocnice"},null,null,null,null,null,19,44,null,null,null,null,null,null,null,"04",null,null,null,"04",null,null,null,44]
[2,"V","A",23,{"$f":"'Planá n.Lužnicí, Strkov'!$E$27","v":"Klokoty"},null,null,null,null,null,20,null,null,null,null,null,null,null,null,"07",49,null,null,"07",49]
[1,"V","A",24,{"$f":"'Planá n.Lužnicí, Strkov'!$E$28","v":"Klokoty točna"},null,null,null,null,null,21,"B19",44,null,null,null,null,null,null,34,null,null,null,34,null,null,null,"44 "]
[null,null,{"$f":"platnost!$A29","v":"jízdné 16,- Kč"},null,null,"platí 10 minut",null,null,null,null,22,"22",57,null,null,null,null,null,null,"14",57,null,null,"14",57,null,null,"22",57]
[null,null,{"$f":"platnost!$A30","v":"jízdné 20,- Kč"},null,null,"platí 20 minut",null,null,null,null,23,"20",null,null,null,null,null,null,null,"38",null,null,null,"38",null,null,null,"20"]
[null,null,{"$f":"platnost!$A31","v":"jízdné 24,- Kč"},null,null,"platí 60 minut"]
[null,null,null,null,null,null,null,null,null,null,"Vysvětlivky:",null,null,{"$f":"platnost!$G$26","v":"G - nejede 19.4.2025"}]
[null,null,null,null,null,null,null,null,null,null,null,null,null,{"$f":"platnost!$G$23","v":"POZOR - zastávka Nový hřbitov NA ZNAMENÍ"}]
[null,null,null,null,null,null,null,null,null,null,null,null,null,"B - po dobu uzavírky spoj obsluhuje Sezimovo Ústí I náměstí"]
[null,null,null,null,null,null,null,null,null,null,null,null,null,{"$f":"platnost!$G$22","v":"Všechny spoje s bezbariérově přístupným vozidlem"}]

{"sheet":"sídl. nad Lužnicí E55","index":11,"n_rows":35,"n_cols":38,"rows_kept":35,"cut":false,"hidden":false,"merged":[[0,24,3,27]]}
["Platnost:",null,null,{"$f":"platnost!$A$1","v":"platí od 31.8.2025"},null,null,null,null,null,null,null,"informace: 381256366",null,null,null,null,null,null,null,null,null,null,null,null,13]
["COMETT PLUS, spol.s r.o.,Chýnovská 2115,Tábor 39002,mhd@comettplus.cz"]
["Linka : ",null,"395013",null,null,null,null,"Zastávka:",null,null,{"$f":"E15","v":"sídl. Nad Lužnicí E55"}]
[null,null,"pásmo ","minut. vzdál."]
[0,null,"C",null,{"$f":"'Planá n.Lužnicí, Strkov'!$E$5","v":"Planá n.Lužnicí Strkov"},null,null,null,null,null,"Pracovní dny",null,null,null,null,null,null,null,null,"Soboty",null,null,null,"neděle + svátky",null,null,null,"Pracovní dny - omezení dopravy MHD"]
[null,null,"C",null,"Planá n.Lužnicí Strkovská ",null,null,null,null,null,"Hod","minuty",null,null,null,null,null,null,null,"minuty",null,null,null,"minuty",null,null,null,{"$f":"platnost!$A$2","v":"    od 30.června do 29.srpna"}]
[null,null,"C",null,{"$f":"'Planá n.Lužnicí, Strkov'!$E$7","v":"Planá n.Lužnicí náměstí"},null,null,null,null,null,0,null,null,null,null,null,null,null,null,"G55",null,null,null,"55"]
[null,null,"C",null,"Planá n.Lužnicí U řadovek",null,null,null,null,null,1]
[null,null,"C",null,{"$f":"'Planá n.Lužnicí, Strkov'!$E$9","v":"Planá n.Lužnicí Masokomb. točna"},null,null,null,null,null,2]
[null,null,"C",null,{"$f":"'Planá n.Lužnicí, Strkov'!$E$10","v":"Planá n.Lužnicí Masokomb. závod"},null,null,null,null,null,3,null,null,null,null,null,null,null,null,3,null,null,null,3]
[1,null,"C",null,{"$f":"'Planá n.Lužnicí, Strkov'!$E$11","v":"Planá n.Lužnicí Madeta"},null,null,null,null,null,4,"B27",null,null,null,null,null,null,null,null,null,null,null,null,null,null,null,"B27"]
[1,null,"C",null,{"$f":"'Planá n.Lužnicí, Strkov'!$E$12","v":"Planá n.Lužnicí hřbitov"},null,null,null,null,null,5,12,32,null,null,null,null,null,null,18,null,null,null,18,null,null,null,12,32]
[2,null,"C,B",null,{"$f":"'Planá n.Lužnicí, Strkov'!$E$13","v":"Planá n.Lužnicí Silon"},null,null,null,null,null,6,22,42,null,null,null,null,null,null,17,42,null,null,17,42,null,null,22,42]
[1,null,"B",null,{"$f":"'Planá n.Lužnicí, Strkov'!$E$14","v":"Sezimovo Ústí II Kovosvit"},null,null,null,null,null,7,17,47,null,null,null,null,null,null,37,null,null,null,37,null,null,null,17,47]
[5,"V","B",0,"sídl. Nad Lužnicí E55",null,null,null,null,null,8,null,null,null,null,null,null,null,null,30,null,null,null,30]
[2,"V","B",{"$f":"[1]platnost!$G$29","v":"K"},{"$f":"'Planá n.Lužnicí, Strkov'!$E$16","v":"Sezimovo Ústí I rozcestí"},null,null,null,null,null,9,2,54,null,null,null,null,null,null,2,52,null,null,2,52,null,null,2,54]
[1,"V","B",{"$f":"[1]platnost!$G$29","v":"K"},{"$f":"'Planá n.Lužnicí, Strkov'!$E$17","v":"Sezimovo Ústí I náměstí"},null,null,null,null,null,10,55,null,null,null,null,null,null,null,52,null,null,null,52,null,null,null,58,null,null,null,null,null,null,null,null,null,3]
[2,"V","B",{"$f":"[1]platnost!$G$29","v":"K"},{"$f":"'Planá n.Lužnicí, Strkov'!$E$18","v":"sídl. Nad Lužnicí "},null,null,null,null,null,11,59,null,null,null,null,null,null,null,42,null,null,null,42,null,null,null,59]
[3,"V","B,A",{"$f":"+D15+$A19","v":3},{"$f":"'Planá n.Lužnicí, Strkov'!$E$19","v":"Nový hřbitov"},null,null,null,null,null,12,null,null,null,null,null,null,null,null,25,null,null,null,25]
[1,"V","A",{"$f":"+D19+$A20","v":4},{"$f":"'Planá n.Lužnicí, Strkov'!$E$20","v":"Na Kopečku"},null,null,null,null,null,13,27,null,null,null,null,null,null,null,7,45,null,null,7,45,null,null,27]
[2,"V","A",6,{"$f":"'Planá n.Lužnicí, Strkov'!$E$21","v":"Černé mosty"},null,null,null,null,null,14,14,57,null,null,null,null,null,null,32,null,null,null,32,null,null,null,14,57]
[2,"V","A",8,{"$f":"'Planá n.Lužnicí, Strkov'!$E$22","v":"Autobusové nádraží"},null,null,null,null,null,15,null,null,null,null,null,null,null,null,20,57,null,null,20,57]
[2,"V","A",10,{"$f":"'Planá n.Lužnicí, Strkov'!$E$23","v":"Poliklinika"},null,null,null,null,null,16,12,34,null,null,null,null,null,null,50,null,null,null,50,null,null,null,12,34]
[2,"V","A",12,{"$f":"'Planá n.Lužnicí, Strkov'!$E$24","v":"U Reálky"},null,null,null,null,null,17,32,null,null,null,null,null,null,null,47,null,null,null,47,null,null,null,32]
[2,"V","A",14,{"$f":"'Planá n.Lužnicí, Strkov'!$E$25","v":"Písecké rozcestí"},null,null,null,null,null,18,17,null,null,null,null,null,null,null,17,null,null,null,17,null,null,null,17]
[2,"V","A",16,{"$f":"'Planá n.Lužnicí, Strkov'!$E$26","v":"Nemocnice"},null,null,null,null,null,19,47,null,null,null,null,null,null,null,7,null,null,null,7,null,null,null,47]
[2,"V","A",18,{"$f":"'Planá n.Lužnicí, Strkov'!$E$27","v":"Klokoty"},null,null,null,null,null,20,null,null,null,null,null,null,null,null,10,52,null,null,10,52]
[1,"V","A",19,{"$f":"'Planá n.Lužnicí, Strkov'!$E$28","v":"Klokoty točna"},null,null,null,null,null,21,"B22",47,null,null,null,null,null,null,37,null,null,null,37,null,null,null,47]
[null,null,{"$f":"platnost!$A29","v":"jízdné 16,- Kč"},null,null,"platí 10 minut",null,null,null,null,22,25,null,null,null,null,null,null,null,17,null,null,null,17,null,null,null,25]
[null,null,{"$f":"platnost!$A30","v":"jízdné 20,- Kč"},null,null,"platí 20 minut",null,null,null,null,23,0,23,null,null,null,null,null,null,0,"41",null,null,0,"41",null,null,0,23]
[null,null,{"$f":"platnost!$A31","v":"jízdné 24,- Kč"},null,null,"platí 60 minut"]
[null,null,null,null,null,null,null,null,null,null,"Vysvětlivky:",null,null,{"$f":"platnost!$G$26","v":"G - nejede 19.4.2025"}]
[null,null,null,null,null,null,null,null,null,null,null,null,null,{"$f":"platnost!$G$23","v":"POZOR - zastávka Nový hřbitov NA ZNAMENÍ"}]
[null,null,null,null,null,null,null,null,null,null,null,null,null,"B - po dobu uzavírky spoj obsluhuje Sezimovo Ústí I náměstí"]
[null,null,null,null,null,null,null,null,null,null,null,null,null,{"$f":"platnost!$G$22","v":"Všechny spoje s bezbariérově přístupným vozidlem"}]

{"sheet":"Sezimovo Ústí I náměstí","index":12,"n_rows":35,"n_cols":38,"rows_kept":35,"cut":false,"hidden":false,"merged":[[0,24,3,27]]}
["Platnost:",null,null,{"$f":"platnost!$A$1","v":"platí od 31.8.2025"},null,null,null,null,null,null,null,"informace: 381256366",null,null,null,null,null,null,null,null,null,null,null,null,13]
["COMETT PLUS, spol.s r.o.,Chýnovská 2115,Tábor 39002,mhd@comettplus.cz"]
["Linka : ",null,"395013",null,null,null,null,"Zastávka:",null,null,{"$f":"E17","v":"Sezimovo Ústí I náměstí"}]
[null,null,"pásmo ","minut. vzdál."]
[0,null,"C",null,{"$f":"'Planá n.Lužnicí, Strkov'!$E$5","v":"Planá n.Lužnicí Strkov"},null,null,null,null,null,"Pracovní dny",null,null,null,null,null,null,null,null,"Soboty",null,null,null,"neděle + svátky",null,null,null,"Pracovní dny - omezení dopravy MHD"]
[null,null,"C",null,"Planá n.Lužnicí Strkovská ",null,null,null,null,null,"Hod","minuty",null,null,null,null,null,null,null,"minuty",null,null,null,"minuty",null,null,null,{"$f":"platnost!$A$2","v":"    od 30.června do 29.srpna"}]
[null,null,"C",null,{"$f":"'Planá n.Lužnicí, Strkov'!$E$7","v":"Planá n.Lužnicí náměstí"},null,null,null,null,null,0]
[null,null,"C",null,"Planá n.Lužnicí U řadovek",null,null,null,null,null,1]
[null,null,"C",null,{"$f":"'Planá n.Lužnicí, Strkov'!$E$9","v":"Planá n.Lužnicí Masokomb. točna"},null,null,null,null,null,2]
[null,null,"C",null,{"$f":"'Planá n.Lužnicí, Strkov'!$E$10","v":"Planá n.Lužnicí Masokomb. závod"},null,null,null,null,null,3]
[1,null,"C",null,{"$f":"'Planá n.Lužnicí, Strkov'!$E$11","v":"Planá n.Lužnicí Madeta"},null,null,null,null,null,4,"B30",null,null,null,null,null,null,null,null,null,null,null,null,null,null,null,"B30"]
[1,null,"C",null,{"$f":"'Planá n.Lužnicí, Strkov'!$E$12","v":"Planá n.Lužnicí hřbitov"},null,null,null,null,null,5]
[2,null,"C,B",null,{"$f":"'Planá n.Lužnicí, Strkov'!$E$13","v":"Planá n.Lužnicí Silon"},null,null,null,null,null,6]
[1,null,"B",null,{"$f":"'Planá n.Lužnicí, Strkov'!$E$14","v":"Sezimovo Ústí II Kovosvit"},null,null,null,null,null,7]
[5,null,"B",null,"sídl. Nad Lužnicí E55",null,null,null,null,null,8]
[2,null,"B",{"$f":"[1]platnost!$G$29","v":"K"},{"$f":"'Planá n.Lužnicí, Strkov'!$E$16","v":"Sezimovo Ústí I rozcestí"},null,null,null,null,null,9]
[1,"V","B",0,{"$f":"'Planá n.Lužnicí, Strkov'!$E$17","v":"Sezimovo Ústí I náměstí"},null,null,null,null,null,10,null,null,null,null,null,null,null,null,null,null,null,null,null,null,null,null,null,null,null,null,null,null,null,null,null,null,3]
[2,"V","B",{"$f":"[1]platnost!$G$29","v":"K"},{"$f":"'Planá n.Lužnicí, Strkov'!$E$18","v":"sídl. Nad Lužnicí "},null,null,null,null,null,11]
[3,"V","B,A",{"$f":"+D15+$A19","v":3},{"$f":"'Planá n.Lužnicí, Strkov'!$E$19","v":"Nový hřbitov"},null,null,null,null,null,12]
[1,"V","A",{"$f":"+D19+$A20","v":4},{"$f":"'Planá n.Lužnicí, Strkov'!$E$20","v":"Na Kopečku"},null,null,null,null,null,13]
[2,"V","A",6,{"$f":"'Planá n.Lužnicí, Strkov'!$E$21","v":"Černé mosty"},null,null,null,null,null,14]
[2,"V","A",8,{"$f":"'Planá n.Lužnicí, Strkov'!$E$22","v":"Autobusové nádraží"},null,null,null,null,null,15]
[2,"V","A",10,{"$f":"'Planá n.Lužnicí, Strkov'!$E$23","v":"Poliklinika"},null,null,null,null,null,16]
[2,"V","A",12,{"$f":"'Planá n.Lužnicí, Strkov'!$E$24","v":"U Reálky"},null,null,null,null,null,17]
[2,"V","A",14,{"$f":"'Planá n.Lužnicí, Strkov'!$E$25","v":"Písecké rozcestí"},null,null,null,null,null,18]
[2,"V","A",16,{"$f":"'Planá n.Lužnicí, Strkov'!$E$26","v":"Nemocnice"},null,null,null,null,null,19]
[2,"V","A",18,{"$f":"'Planá n.Lužnicí, Strkov'!$E$27","v":"Klokoty"},null,null,null,null,null,20]
[1,"V","A",19,{"$f":"'Planá n.Lužnicí, Strkov'!$E$28","v":"Klokoty točna"},null,null,null,null,null,21,"B25"]
[null,null,{"$f":"platnost!$A29","v":"jízdné 16,- Kč"},null,null,"platí 10 minut",null,null,null,null,22]
[null,null,{"$f":"platnost!$A30","v":"jízdné 20,- Kč"},null,null,"platí 20 minut",null,null,null,null,23]
[null,null,{"$f":"platnost!$A31","v":"jízdné 24,- Kč"},null,null,"platí 60 minut"]
[null,null,null,null,null,null,null,null,null,null,"Vysvětlivky:",null,null,"B - po dobu uzavírky spoj obsluhuje Sezimovo Ústí I náměstí"]
[null,null,null,null,null,null,null,null,null,null,null,null,null,{"$f":"platnost!$G$23","v":"POZOR - zastávka Nový hřbitov NA ZNAMENÍ"}]
[]
[null,null,null,null,null,null,null,null,null,null,null,null,null,{"$f":"platnost!$G$22","v":"Všechny spoje s bezbariérově přístupným vozidlem"}]

{"sheet":"Nový hřbitov","index":13,"n_rows":35,"n_cols":37,"rows_kept":35,"cut":false,"hidden":false,"merged":[[0,24,3,27]]}
["Platnost:",null,null,{"$f":"platnost!$A$1","v":"platí od 31.8.2025"},null,null,null,null,null,null,null,"informace: 381256366",null,null,null,null,null,null,null,null,null,null,null,null,13]
["COMETT PLUS, spol.s r.o.,Chýnovská 2115,Tábor 39002,mhd@comettplus.cz"]
["Linka : ",null," 395013",null,null,null,null,"Zastávka:",null,null,{"$f":"E18","v":"Nový hřbitov"}]
[null,null,"pásmo ","minut. vzdál."]
[0,null,"C",null,{"$f":"'Planá n.Lužnicí, Strkov'!$E$5","v":"Planá n.Lužnicí Strkov"},null,null,null,null,null,"Pracovní dny",null,null,null,null,null,null,null,null,"Soboty",null,null,null,"neděle + svátky",null,null,null,"Pracovní dny - omezení dopravy MHD"]
[0,null,"C",null,"Planá n.Lužnicí Strkovská ",null,null,null,null,null,"Hod","minuty",null,null,null,null,null,null,null,"minuty",null,null,null,"minuty",null,null,null,{"$f":"platnost!$A$2","v":"    od 30.června do 29.srpna"}]
[3,null,"C",null,{"$f":"'Planá n.Lužnicí, Strkov'!$E$7","v":"Planá n.Lužnicí náměstí"},null,null,null,null,null,0,null,null,null,null,null,null,null,null,"G57",null,null,null,"57"]
[1,null,"C",null,"Planá n.Lužnicí U řadovek",null,null,null,null,null,1]
[1,null,"C",null,{"$f":"'Planá n.Lužnicí, Strkov'!$E$9","v":"Planá n.Lužnicí Masokomb. točna"},null,null,null,null,null,2]
[1,null,"C",null,{"$f":"'Planá n.Lužnicí, Strkov'!$E$10","v":"Planá n.Lužnicí Masokomb. závod"},null,null,null,null,null,3,null,null,null,null,null,null,null,null,5,null,null,null,5]
[1,null,"C",null,{"$f":"'Planá n.Lužnicí, Strkov'!$E$11","v":"Planá n.Lužnicí Madeta"},null,null,null,null,null,4,34,null,null,null,null,null,null,null,null,null,null,null,null,null,null,null,34]
[1,null,"C",null,{"$f":"'Planá n.Lužnicí, Strkov'!$E$12","v":"Planá n.Lužnicí hřbitov"},null,null,null,null,null,5,14,34,null,null,null,null,null,null,20,null,null,null,20,null,null,null,14,34]
[2,null,"C,B",null,{"$f":"'Planá n.Lužnicí, Strkov'!$E$13","v":"Planá n.Lužnicí Silon"},null,null,null,null,null,6,24,44,null,null,null,null,null,null,19,44,null,null,19,44,null,null,24,44]
[1,null,"B",null,{"$f":"'Planá n.Lužnicí, Strkov'!$E$14","v":"Sezimovo Ústí II Kovosvit"},null,null,null,null,null,7,19,49,null,null,null,null,null,null,39,null,null,null,39,null,null,null,19,49]
[2,null,"B",null,{"$f":"'Planá n.Lužnicí, Strkov'!$E$16","v":"Sezimovo Ústí I rozcestí"},null,null,null,null,null,8,null,null,null,null,null,null,null,null,32,null,null,null,32]
[1,null,"B",null,{"$f":"'Planá n.Lužnicí, Strkov'!$E$17","v":"Sezimovo Ústí I náměstí"},null,null,null,null,null,9,4,56,null,null,null,null,null,null,4,54,null,null,4,54,null,null,4,56]
[2,null,"B",null,{"$f":"'Planá n.Lužnicí, Strkov'!$E$18","v":"sídl. Nad Lužnicí "},null,null,null,null,null,10,57,null,null,null,null,null,null,null,54,null,null,null,54]
[3,"V","B,A",0,{"$f":"'Planá n.Lužnicí, Strkov'!$E$19","v":"Nový hřbitov"},null,null,null,null,null,11,null,null,null,null,null,null,null,null,44,null,null,null,44,null,null,null,0]
[1,"V","A",{"$f":"+D18+$A19","v":1},{"$f":"'Planá n.Lužnicí, Strkov'!$E$20","v":"Na Kopečku"},null,null,null,null,null,12,1,null,null,null,null,null,null,null,27,null,null,null,27,null,null,null,1]
[2,"V","A",{"$f":"+D19+$A20","v":3},{"$f":"'Planá n.Lužnicí, Strkov'!$E$21","v":"Černé mosty"},null,null,null,null,null,13,29,null,null,null,null,null,null,null,9,47,null,null,9,47,null,null,29]
[2,"V","A",5,{"$f":"'Planá n.Lužnicí, Strkov'!$E$22","v":"Autobusové nádraží"},null,null,null,null,null,14,16,59,null,null,null,null,null,null,34,null,null,null,34,null,null,null,16,59]
[2,"V","A",7,{"$f":"'Planá n.Lužnicí, Strkov'!$E$23","v":"Poliklinika"},null,null,null,null,null,15,null,null,null,null,null,null,null,null,22,59,null,null,22,59,null,null,null,null,null,null,null,null,null,null,null,2]
[2,"V","A",9,{"$f":"'Planá n.Lužnicí, Strkov'!$E$24","v":"U Reálky"},null,null,null,null,null,16,14,36,null,null,null,null,null,null,52,null,null,null,52,null,null,null,14,36]
[2,"V","A",11,{"$f":"'Planá n.Lužnicí, Strkov'!$E$25","v":"Písecké rozcestí"},null,null,null,null,null,17,34,null,null,null,null,null,null,null,49,null,null,null,49,null,null,null,34]
[2,"V","A",13,{"$f":"'Planá n.Lužnicí, Strkov'!$E$26","v":"Nemocnice"},null,null,null,null,null,18,19,null,null,null,null,null,null,null,19,null,null,null,19,null,null,null,19]
[2,"V","A",15,{"$f":"'Planá n.Lužnicí, Strkov'!$E$27","v":"Klokoty"},null,null,null,null,null,19,49,null,null,null,null,null,null,null,9,null,null,null,9,null,null,null,49]
[1,"V","A",16,{"$f":"'Planá n.Lužnicí, Strkov'!$E$28","v":"Klokoty točna"},null,null,null,null,null,20,null,null,null,null,null,null,null,null,12,54,null,null,12,54]
[null,null,null,null,null,null,null,null,null,null,21,29,49,null,null,null,null,null,null,39,null,null,null,39,null,null,null,49]
[null,null,{"$f":"platnost!$A29","v":"jízdné 16,- Kč"},null,null,"platí 10 minut",null,null,null,null,22,27,null,null,null,null,null,null,null,19,null,null,null,19,null,null,null,27]
[null,null,{"$f":"platnost!$A30","v":"jízdné 20,- Kč"},null,null,"platí 20 minut",null,null,null,null,23,2,25,null,null,null,null,null,null,2,43,null,null,2,43,null,null,2,25]
[null,null,{"$f":"platnost!$A31","v":"jízdné 24,- Kč"},null,null,"platí 60 minut"]
[null,null,null,null,null,null,null,null,null,null,"Vysvětlivky:",null,null,{"$f":"platnost!$G$26","v":"G - nejede 19.4.2025"}]
[null,null,null,null,null,null,null,null,null,null,null,null,null,{"$f":"platnost!$G$23","v":"POZOR - zastávka Nový hřbitov NA ZNAMENÍ"}]
[]
[null,null,null,null,null,null,null,null,null,null,null,null,null,{"$f":"platnost!$G$22","v":"Všechny spoje s bezbariérově přístupným vozidlem"}]

{"sheet":"Na Kopečku","index":14,"n_rows":35,"n_cols":29,"rows_kept":35,"cut":false,"hidden":false,"merged":[[0,24,3,27]]}
["Platnost:",null,null,{"$f":"platnost!$A$1","v":"platí od 31.8.2025"},null,null,null,null,null,null,null,"informace: 381256366",null,null,null,null,null,null,null,null,null,null,null,null,13]
["COMETT PLUS, spol.s r.o.,Chýnovská 2115,Tábor 39002,mhd@comettplus.cz"]
["Linka : ",null,"395013",null,null,null,null,"Zastávka:",null,null,{"$f":"E19","v":"Na Kopečku"}]
[null,null,"pásmo ","minut. vzdál."]
[0,null,"C",null,{"$f":"'Planá n.Lužnicí, Strkov'!$E$5","v":"Planá n.Lužnicí Strkov"},null,null,null,null,null,"Pracovní dny",null,null,null,null,null,null,null,null,"Soboty",null,null,null,"neděle + svátky",null,null,null,"Pracovní dny - omezení dopravy MHD"]
[3,null,"C",null,"Planá n.Lužnicí Strkovská ",null,null,null,null,null,"Hod","minuty",null,null,null,null,null,null,null,"minuty",null,null,null,"minuty",null,null,null,{"$f":"platnost!$A$2","v":"    od 30.června do 29.srpna"}]
[3,null,"C",null,{"$f":"'Planá n.Lužnicí, Strkov'!$E$7","v":"Planá n.Lužnicí náměstí"},null,null,null,null,null,0,null,null,null,null,null,null,null,null,"G58",null,null,null,"58"]
[1,null,"C",null,"Planá n.Lužnicí U řadovek",null,null,null,null,null,1]
[1,null,"C",null,{"$f":"'Planá n.Lužnicí, Strkov'!$E$9","v":"Planá n.Lužnicí Masokomb. točna"},null,null,null,null,null,2]
[1,null,"C",null,{"$f":"'Planá n.Lužnicí, Strkov'!$E$10","v":"Planá n.Lužnicí Masokomb. závod"},null,null,null,null,null,3,null,null,null,null,null,null,null,null,6,null,null,null,6]
[1,null,"C",null,{"$f":"'Planá n.Lužnicí, Strkov'!$E$11","v":"Planá n.Lužnicí Madeta"},null,null,null,null,null,4,35,null,null,null,null,null,null,null,null,null,null,null,null,null,null,null,35]
[1,null,"C",null,{"$f":"'Planá n.Lužnicí, Strkov'!$E$12","v":"Planá n.Lužnicí hřbitov"},null,null,null,null,null,5,15,35,null,null,null,null,null,null,21,null,null,null,21,null,null,null,15,35]
[2,null,"C,B",null,{"$f":"'Planá n.Lužnicí, Strkov'!$E$13","v":"Planá n.Lužnicí Silon"},null,null,null,null,null,6,25,45,null,null,null,null,null,null,20,45,null,null,20,45,null,null,25,45]
[1,null,"B",null,{"$f":"'Planá n.Lužnicí, Strkov'!$E$14","v":"Sezimovo Ústí II Kovosvit"},null,null,null,null,null,7,20,50,null,null,null,null,null,null,40,null,null,null,40,null,null,null,20,50]
[2,null,"B",null,{"$f":"'Planá n.Lužnicí, Strkov'!$E$16","v":"Sezimovo Ústí I rozcestí"},null,null,null,null,null,8,null,null,null,null,null,null,null,null,33,null,null,null,33]
[1,null,"B",null,{"$f":"'Planá n.Lužnicí, Strkov'!$E$17","v":"Sezimovo Ústí I náměstí"},null,null,null,null,null,9,5,57,null,null,null,null,null,null,5,55,null,null,5,55,null,null,5,57]
[2,null,"B",null,{"$f":"'Planá n.Lužnicí, Strkov'!$E$18","v":"sídl. Nad Lužnicí "},null,null,null,null,null,10,58,null,null,null,null,null,null,null,55,null,null,null,55]
[3,null,"B,A",null,{"$f":"'Planá n.Lužnicí, Strkov'!$E$19","v":"Nový hřbitov"},null,null,null,null,null,11,null,null,null,null,null,null,null,null,45,null,null,null,45,null,null,null,1]
[1,"V","A",0,{"$f":"'Planá n.Lužnicí, Strkov'!$E$20","v":"Na Kopečku"},null,null,null,null,null,12,2,null,null,null,null,null,null,null,28,null,null,null,28,null,null,null,2]
[2,"V","A",{"$f":"+D19+$A20","v":2},{"$f":"'Planá n.Lužnicí, Strkov'!$E$21","v":"Černé mosty"},null,null,null,null,null,13,30,null,null,null,null,null,null,null,10,48,null,null,10,48,null,null,30]
[2,"V","A",{"$f":"+D20+$A21","v":4},{"$f":"'Planá n.Lužnicí, Strkov'!$E$22","v":"Autobusové nádraží"},null,null,null,null,null,14,17,null,null,null,null,null,null,null,35,null,null,null,35,null,null,null,17]
[2,"V","A",6,{"$f":"'Planá n.Lužnicí, Strkov'!$E$23","v":"Poliklinika"},null,null,null,null,null,15,0,null,null,null,null,null,null,null,23,null,null,null,23,null,null,null,0]
[2,"V","A",8,{"$f":"'Planá n.Lužnicí, Strkov'!$E$24","v":"U Reálky"},null,null,null,null,null,16,15,37,null,null,null,null,null,null,0,53,null,null,0,53,null,null,15,37]
[2,"V","A",10,{"$f":"'Planá n.Lužnicí, Strkov'!$E$25","v":"Písecké rozcestí"},null,null,null,null,null,17,35,null,null,null,null,null,null,null,50,null,null,null,50,null,null,null,35]
[2,"V","A",12,{"$f":"'Planá n.Lužnicí, Strkov'!$E$26","v":"Nemocnice"},null,null,null,null,null,18,20,null,null,null,null,null,null,null,20,null,null,null,20,null,null,null,20]
[2,"V","A",14,{"$f":"'Planá n.Lužnicí, Strkov'!$E$27","v":"Klokoty"},null,null,null,null,null,19,50,null,null,null,null,null,null,null,10,null,null,null,10,null,null,null,50]
[1,"V","A",15,{"$f":"'Planá n.Lužnicí, Strkov'!$E$28","v":"Klokoty točna"},null,null,null,null,null,20,null,null,null,null,null,null,null,null,13,55,null,null,13,55]
[null,null,null,null,null,null,null,null,null,null,21,30,50,null,null,null,null,null,null,40,null,null,null,40,null,null,null,50]
[null,null,{"$f":"platnost!$A29","v":"jízdné 16,- Kč"},null,null,"platí 10 minut",null,null,null,null,22,28,null,null,null,null,null,null,null,20,null,null,null,20,null,null,null,28]
[null,null,{"$f":"platnost!$A30","v":"jízdné 20,- Kč"},null,null,"platí 20 minut",null,null,null,null,23,3,26,null,null,null,null,null,null,3,44,null,null,3,44,null,null,3,26]
[null,null,{"$f":"platnost!$A31","v":"jízdné 24,- Kč"},null,null,"platí 60 minut"]
[null,null,null,null,null,null,null,null,null,null,"Vysvětlivky:",null,null,{"$f":"platnost!$G$26","v":"G - nejede 19.4.2025"}]
[null,null,null,null,null,null,null,null,null,null,null,null,null,{"$f":"platnost!$G$23","v":"POZOR - zastávka Nový hřbitov NA ZNAMENÍ"}]
[]
[null,null,null,null,null,null,null,null,null,null,null,null,null,{"$f":"platnost!$G$22","v":"Všechny spoje s bezbariérově přístupným vozidlem"}]

{"sheet":"Černé mosty","index":15,"n_rows":35,"n_cols":38,"rows_kept":35,"cut":false,"hidden":false,"merged":[[0,24,3,27]]}
["Platnost:",null,null,{"$f":"platnost!$A$1","v":"platí od 31.8.2025"},null,null,null,null,null,null,null,"informace: 381256366",null,null,null,null,null,null,null,null,null,null,null,null,13]
["COMETT PLUS, spol.s r.o.,Chýnovská 2115,Tábor 39002,mhd@comettplus.cz"]
["Linka : ",null," 395013",null,null,null,null,"Zastávka:",null,null,{"$f":"E20","v":"Černé mosty"}]
[null,null,"pásmo ","minut. vzdál."]
[0,null,"C",null,{"$f":"'Planá n.Lužnicí, Strkov'!$E$5","v":"Planá n.Lužnicí Strkov"},null,null,null,null,null,"Pracovní dny",null,null,null,null,null,null,null,null,"Soboty",null,null,null,"neděle + svátky",null,null,null,"Pracovní dny - omezení dopravy MHD"]
[3,null,"C",null,"Planá n.Lužnicí Strkovská ",null,null,null,null,null,"Hod","minuty",null,null,null,null,null,null,null,"minuty",null,null,null,"minuty",null,null,null,{"$f":"platnost!$A$2","v":"    od 30.června do 29.srpna"}]
[3,null,"C",null,{"$f":"'Planá n.Lužnicí, Strkov'!$E$7","v":"Planá n.Lužnicí náměstí"},null,null,null,null,null,0]
[1,null,"C",null,"Planá n.Lužnicí U řadovek",null,null,null,null,null,1,null,null,null,null,null,null,null,null,"G00",null,null,null,0]
[1,null,"C",null,{"$f":"'Planá n.Lužnicí, Strkov'!$E$9","v":"Planá n.Lužnicí Masokomb. točna"},null,null,null,null,null,2]
[1,null,"C",null,{"$f":"'Planá n.Lužnicí, Strkov'!$E$10","v":"Planá n.Lužnicí Masokomb. závod"},null,null,null,null,null,3,null,null,null,null,null,null,null,null,8,null,null,null,8]
[1,null,"C",null,{"$f":"'Planá n.Lužnicí, Strkov'!$E$11","v":"Planá n.Lužnicí Madeta"},null,null,null,null,null,4,37,null,null,null,null,null,null,null,null,null,null,null,null,null,null,null,37]
[1,null,"C",null,{"$f":"'Planá n.Lužnicí, Strkov'!$E$12","v":"Planá n.Lužnicí hřbitov"},null,null,null,null,null,5,17,37,null,null,null,null,null,null,23,null,null,null,23,null,null,null,17,37]
[2,null,"C,B",null,{"$f":"'Planá n.Lužnicí, Strkov'!$E$13","v":"Planá n.Lužnicí Silon"},null,null,null,null,null,6,27,47,null,null,null,null,null,null,22,47,null,null,22,47,null,null,27,47]
[1,null,"B",null,{"$f":"'Planá n.Lužnicí, Strkov'!$E$14","v":"Sezimovo Ústí II Kovosvit"},null,null,null,null,null,7,22,52,null,null,null,null,null,null,42,null,null,null,42,null,null,null,22,52]
[2,null,"B",null,{"$f":"'Planá n.Lužnicí, Strkov'!$E$16","v":"Sezimovo Ústí I rozcestí"},null,null,null,null,null,8,null,null,null,null,null,null,null,null,35,null,null,null,35]
[1,null,"B",null,{"$f":"'Planá n.Lužnicí, Strkov'!$E$17","v":"Sezimovo Ústí I náměstí"},null,null,null,null,null,9,7,59,null,null,null,null,null,null,7,57,null,null,7,57,null,null,7,59]
[2,null,"B",null,{"$f":"'Planá n.Lužnicí, Strkov'!$E$18","v":"sídl. Nad Lužnicí "},null,null,null,null,null,10,null,null,null,null,null,null,null,null,57,null,null,null,57,null,null,null,null,null,null,null,null,null,null,null,null,null,2]
[3,null,"B,A",null,{"$f":"'Planá n.Lužnicí, Strkov'!$E$19","v":"Nový hřbitov"},null,null,null,null,null,11,0,null,null,null,null,null,null,null,47,null,null,null,47,null,null,null,3]
[1,null,"A",null,{"$f":"'Planá n.Lužnicí, Strkov'!$E$20","v":"Na Kopečku"},null,null,null,null,null,12,4,null,null,null,null,null,null,null,30,null,null,null,30,null,null,null,4]
[2,"V","A",0,{"$f":"'Planá n.Lužnicí, Strkov'!$E$21","v":"Černé mosty"},null,null,null,null,null,13,32,null,null,null,null,null,null,null,12,50,null,null,12,50,null,null,32]
[2,"V","A",{"$f":"+D20+$A21","v":2},{"$f":"'Planá n.Lužnicí, Strkov'!$E$22","v":"Autobusové nádraží"},null,null,null,null,null,14,19,null,null,null,null,null,null,null,37,null,null,null,37,null,null,null,19]
[2,"V","A",{"$f":"+D21+$A22","v":4},{"$f":"'Planá n.Lužnicí, Strkov'!$E$23","v":"Poliklinika"},null,null,null,null,null,15,2,null,null,null,null,null,null,null,25,null,null,null,25,null,null,null,2]
[2,"V","A",6,{"$f":"'Planá n.Lužnicí, Strkov'!$E$24","v":"U Reálky"},null,null,null,null,null,16,17,39,null,null,null,null,null,null,2,55,null,null,2,55,null,null,17,39]
[2,"V","A",8,{"$f":"'Planá n.Lužnicí, Strkov'!$E$25","v":"Písecké rozcestí"},null,null,null,null,null,17,37,null,null,null,null,null,null,null,52,null,null,null,52,null,null,null,37]
[2,"V","A",10,{"$f":"'Planá n.Lužnicí, Strkov'!$E$26","v":"Nemocnice"},null,null,null,null,null,18,22,null,null,null,null,null,null,null,22,null,null,null,22,null,null,null,22]
[2,"V","A",12,{"$f":"'Planá n.Lužnicí, Strkov'!$E$27","v":"Klokoty"},null,null,null,null,null,19,52,null,null,null,null,null,null,null,12,null,null,null,12,null,null,null,52]
[1,"V","A",13,{"$f":"'Planá n.Lužnicí, Strkov'!$E$28","v":"Klokoty točna"},null,null,null,null,null,20,null,null,null,null,null,null,null,null,15,57,null,null,15,57]
[null,null,null,null,null,null,null,null,null,null,21,32,52,null,null,null,null,null,null,42,null,null,null,42,null,null,null,52]
[null,null,{"$f":"platnost!$A29","v":"jízdné 16,- Kč"},null,null,"platí 10 minut",null,null,null,null,22,30,null,null,null,null,null,null,null,22,null,null,null,22,null,null,null,30]
[null,null,{"$f":"platnost!$A30","v":"jízdné 20,- Kč"},null,null,"platí 20 minut",null,null,null,null,23,5,28,null,null,null,null,null,null,5,46,null,null,5,46,null,null,5,28]
[null,null,{"$f":"platnost!$A31","v":"jízdné 24,- Kč"},null,null,"platí 60 minut"]
[null,null,null,null,null,null,null,null,null,null,"Vysvětlivky:",null,null,{"$f":"platnost!$G$26","v":"G - nejede 19.4.2025"}]
[null,null,null,null,null,null,null,null,null,null,null,null,null,{"$f":"platnost!$G$23","v":"POZOR - zastávka Nový hřbitov NA ZNAMENÍ"}]
[]
[null,null,null,null,null,null,null,null,null,null,null,null,null,{"$f":"platnost!$G$22","v":"Všechny spoje s bezbariérově přístupným vozidlem"}]

{"sheet":"Aut.nádraží","index":16,"n_rows":35,"n_cols":37,"rows_kept":35,"cut":false,"hidden":false,"merged":[[0,24,3,27]]}
["Platnost:",null,null,{"$f":"platnost!$A$1","v":"platí od 31.8.2025"},null,null,null,null,null,null,null,"informace: 381256366",null,null,null,null,null,null,null,null,null,null,null,null,13]
["COMETT PLUS, spol.s r.o.,Chýnovská 2115,Tábor 39002,mhd@comettplus.cz"]
["Linka : ",null,"395013",null,null,null,null,"Zastávka:",null,null,{"$f":"E21","v":"Autobusové nádraží"}]
[null,null,"pásmo ","minut. vzdál."]
[0,null,"C",null,{"$f":"'Planá n.Lužnicí, Strkov'!$E$5","v":"Planá n.Lužnicí Strkov"},null,null,null,null,null,"Pracovní dny",null,null,null,null,null,null,null,null,"Soboty",null,null,null,"neděle + svátky",null,null,null,"Pracovní dny - omezení dopravy MHD"]
[3,null,"C",null,"Planá n.Lužnicí Strkovská ",null,null,null,null,null,"Hod","minuty",null,null,null,null,null,null,null,"minuty",null,null,null,"minuty",null,null,null,{"$f":"platnost!$A$2","v":"    od 30.června do 29.srpna"}]
[3,null,"C",null,{"$f":"'Planá n.Lužnicí, Strkov'!$E$7","v":"Planá n.Lužnicí náměstí"},null,null,null,null,null,0]
[1,null,"C",null,"Planá n.Lužnicí U řadovek",null,null,null,null,null,1,null,null,null,null,null,null,null,null,"G02",null,null,null,2]
[1,null,"C",null,{"$f":"'Planá n.Lužnicí, Strkov'!$E$9","v":"Planá n.Lužnicí Masokomb. točna"},null,null,null,null,null,2]
[1,null,"C",null,{"$f":"'Planá n.Lužnicí, Strkov'!$E$10","v":"Planá n.Lužnicí Masokomb. závod"},null,null,null,null,null,3,null,null,null,null,null,null,null,null,10,null,null,null,10]
[1,null,"C",null,{"$f":"'Planá n.Lužnicí, Strkov'!$E$11","v":"Planá n.Lužnicí Madeta"},null,null,null,null,null,4,39,null,null,null,null,null,null,null,55,null,null,null,55,null,null,null,39]
[1,null,"C",null,{"$f":"'Planá n.Lužnicí, Strkov'!$E$12","v":"Planá n.Lužnicí hřbitov"},null,null,null,null,null,5,19,39,null,null,null,null,null,null,25,null,null,null,25,null,null,null,19,39]
[2,null,"C,B",null,{"$f":"'Planá n.Lužnicí, Strkov'!$E$13","v":"Planá n.Lužnicí Silon"},null,null,null,null,null,6,29,49,null,null,null,null,null,null,24,49,null,null,24,49,null,null,29,49]
[1,null,"B",null,{"$f":"'Planá n.Lužnicí, Strkov'!$E$14","v":"Sezimovo Ústí II Kovosvit"},null,null,null,null,null,7,24,54,null,null,null,null,null,null,44,null,null,null,44,null,null,null,24,54]
[2,null,"B",null,{"$f":"'Planá n.Lužnicí, Strkov'!$E$16","v":"Sezimovo Ústí I rozcestí"},null,null,null,null,null,8,null,null,null,null,null,null,null,null,37,null,null,null,37]
[1,null,"B",null,{"$f":"'Planá n.Lužnicí, Strkov'!$E$17","v":"Sezimovo Ústí I náměstí"},null,null,null,null,null,9,9,null,null,null,null,null,null,null,9,59,null,null,9,59,null,null,9]
[2,null,"B",null,{"$f":"'Planá n.Lužnicí, Strkov'!$E$18","v":"sídl. Nad Lužnicí "},null,null,null,null,null,10,1,null,null,null,null,null,null,null,59,null,null,null,59,null,null,null,1]
[3,null,"B,A",null,{"$f":"'Planá n.Lužnicí, Strkov'!$E$19","v":"Nový hřbitov"},null,null,null,null,null,11,2,null,null,null,null,null,null,null,49,null,null,null,49,null,null,null,5]
[1,null,"A",null,{"$f":"'Planá n.Lužnicí, Strkov'!$E$20","v":"Na Kopečku"},null,null,null,null,null,12,6,null,null,null,null,null,null,null,32,null,null,null,32,null,null,null,6]
[2,null,"A",null,{"$f":"'Planá n.Lužnicí, Strkov'!$E$21","v":"Černé mosty"},null,null,null,null,null,13,34,null,null,null,null,null,null,null,14,52,null,null,14,52,null,null,34]
[2,"V","A",0,{"$f":"'Planá n.Lužnicí, Strkov'!$E$22","v":"Autobusové nádraží"},null,null,null,null,null,14,21,null,null,null,null,null,null,null,39,null,null,null,39,null,null,null,21]
[2,"V","A",{"$f":"+D21+$A22","v":2},{"$f":"'Planá n.Lužnicí, Strkov'!$E$23","v":"Poliklinika"},null,null,null,null,null,15,4,null,null,null,null,null,null,null,27,null,null,null,27,null,null,null,4,null,null,null,null,null,null,null,null,2]
[2,"V","A",4,{"$f":"'Planá n.Lužnicí, Strkov'!$E$24","v":"U Reálky"},null,null,null,null,null,16,19,41,null,null,null,null,null,null,4,57,null,null,4,57,null,null,19,41]
[2,"V","A",6,{"$f":"'Planá n.Lužnicí, Strkov'!$E$25","v":"Písecké rozcestí"},null,null,null,null,null,17,39,null,null,null,null,null,null,null,54,null,null,null,54,null,null,null,39]
[2,"V","A",8,{"$f":"'Planá n.Lužnicí, Strkov'!$E$26","v":"Nemocnice"},null,null,null,null,null,18,24,null,null,null,null,null,null,null,24,null,null,null,24,null,null,null,24]
[2,"V","A",10,{"$f":"'Planá n.Lužnicí, Strkov'!$E$27","v":"Klokoty"},null,null,null,null,null,19,54,null,null,null,null,null,null,null,14,null,null,null,14,null,null,null,54]
[1,"V","A",11,{"$f":"'Planá n.Lužnicí, Strkov'!$E$28","v":"Klokoty točna"},null,null,null,null,null,20,null,null,null,null,null,null,null,null,17,59,null,null,17,59]
[null,null,null,null,null,null,null,null,null,null,21,34,54,null,null,null,null,null,null,44,null,null,null,44,null,null,null,54]
[null,null,{"$f":"platnost!$A29","v":"jízdné 16,- Kč"},null,null,"platí 10 minut",null,null,null,null,22,32,null,null,null,null,null,null,null,24,null,null,null,24,null,null,null,32]
[null,null,{"$f":"platnost!$A30","v":"jízdné 20,- Kč"},null,null,"platí 20 minut",null,null,null,null,23,7,30,null,null,null,null,null,null,7,48,null,null,7,48,null,null,7,30]
[null,null,{"$f":"platnost!$A31","v":"jízdné 24,- Kč"},null,null,"platí 60 minut"]
[null,null,null,null,null,null,null,null,null,null,"Vysvětlivky:",null,null,{"$f":"platnost!$G$26","v":"G - nejede 19.4.2025"}]
[null,null,null,null,null,null,null,null,null,null,null,null,null,{"$f":"platnost!$G$23","v":"POZOR - zastávka Nový hřbitov NA ZNAMENÍ"}]
[]
[null,null,null,null,null,null,null,null,null,null,null,null,null,{"$f":"platnost!$G$22","v":"Všechny spoje s bezbariérově přístupným vozidlem"}]

{"sheet":"Poliklinika","index":17,"n_rows":35,"n_cols":38,"rows_kept":35,"cut":false,"hidden":false,"merged":[[0,24,3,27]]}
["Platnost:",null,null,{"$f":"platnost!$A$1","v":"platí od 31.8.2025"},null,null,null,null,null,null,null,"informace: 381256366",null,null,null,null,null,null,null,null,null,null,null,null,13]
["COMETT PLUS, spol.s r.o.,Chýnovská 2115,Tábor 39002,mhd@comettplus.cz"]
["Linka : ",null,"395013",null,null,null,null,"Zastávka:",null,null,{"$f":"E22","v":"Poliklinika"}]
[null,null,"pásmo ","minut. vzdál."]
[0,null,"C",null,{"$f":"'Planá n.Lužnicí, Strkov'!$E$5","v":"Planá n.Lužnicí Strkov"},null,null,null,null,null,"Pracovní dny",null,null,null,null,null,null,null,null,"Soboty",null,null,null,"neděle + svátky",null,null,null,"Pracovní dny - omezení dopravy MHD"]
[0,null,"C",null,"Planá n.Lužnicí Strkovská ",null,null,null,null,null,"Hod","minuty",null,null,null,null,null,null,null,"minuty",null,null,null,"minuty",null,null,null,{"$f":"platnost!$A$2","v":"    od 30.června do 29.srpna"}]
[3,null,"C",null,{"$f":"'Planá n.Lužnicí, Strkov'!$E$7","v":"Planá n.Lužnicí náměstí"},null,null,null,null,null,0]
[1,null,"C",null,"Planá n.Lužnicí U řadovek",null,null,null,null,null,1,null,null,null,null,null,null,null,null,"G04",null,null,null,4]
[1,null,"C",null,{"$f":"'Planá n.Lužnicí, Strkov'!$E$9","v":"Planá n.Lužnicí Masokomb. točna"},null,null,null,null,null,2]
[1,null,"C",null,{"$f":"'Planá n.Lužnicí, Strkov'!$E$10","v":"Planá n.Lužnicí Masokomb. závod"},null,null,null,null,null,3,null,null,null,null,null,null,null,null,12,null,null,null,12]
[1,null,"C",null,{"$f":"'Planá n.Lužnicí, Strkov'!$E$11","v":"Planá n.Lužnicí Madeta"},null,null,null,null,null,4,41,null,null,null,null,null,null,null,57,null,null,null,57,null,null,null,41]
[1,null,"C",null,{"$f":"'Planá n.Lužnicí, Strkov'!$E$12","v":"Planá n.Lužnicí hřbitov"},null,null,null,null,null,5,21,41,null,null,null,null,null,null,27,null,null,null,27,null,null,null,21,41]
[2,null,"C,B",null,{"$f":"'Planá n.Lužnicí, Strkov'!$E$13","v":"Planá n.Lužnicí Silon"},null,null,null,null,null,6,31,51,null,null,null,null,null,null,26,51,null,null,26,51,null,null,31,51]
[1,null,"B",null,{"$f":"'Planá n.Lužnicí, Strkov'!$E$14","v":"Sezimovo Ústí II Kovosvit"},null,null,null,null,null,7,26,56,null,null,null,null,null,null,46,null,null,null,46,null,null,null,26,56]
[2,null,"B",null,{"$f":"'Planá n.Lužnicí, Strkov'!$E$16","v":"Sezimovo Ústí I rozcestí"},null,null,null,null,null,8,null,null,null,null,null,null,null,null,39,null,null,null,39]
[1,null,"B",null,{"$f":"'Planá n.Lužnicí, Strkov'!$E$17","v":"Sezimovo Ústí I náměstí"},null,null,null,null,null,9,11,null,null,null,null,null,null,null,11,null,null,null,11,null,null,null,11]
[2,null,"B",null,{"$f":"'Planá n.Lužnicí, Strkov'!$E$18","v":"sídl. Nad Lužnicí "},null,null,null,null,null,10,3,null,null,null,null,null,null,null,1,null,null,null,1,null,null,null,3]
[3,null,"B,A",null,{"$f":"'Planá n.Lužnicí, Strkov'!$E$19","v":"Nový hřbitov"},null,null,null,null,null,11,4,null,null,null,null,null,null,null,1,51,null,null,1,51,null,null,7]
[1,null,"A",null,{"$f":"'Planá n.Lužnicí, Strkov'!$E$20","v":"Na Kopečku"},null,null,null,null,null,12,8,null,null,null,null,null,null,null,34,null,null,null,34,null,null,null,8,null,null,null,null,null,null,null,null,null,2]
[2,null,"A",null,{"$f":"'Planá n.Lužnicí, Strkov'!$E$21","v":"Černé mosty"},null,null,null,null,null,13,36,null,null,null,null,null,null,null,16,54,null,null,16,54,null,null,36]
[2,null,"A",null,{"$f":"'Planá n.Lužnicí, Strkov'!$E$22","v":"Autobusové nádraží"},null,null,null,null,null,14,23,null,null,null,null,null,null,null,41,null,null,null,41,null,null,null,23]
[2,"V","A",0,{"$f":"'Planá n.Lužnicí, Strkov'!$E$23","v":"Poliklinika"},null,null,null,null,null,15,6,null,null,null,null,null,null,null,29,null,null,null,29,null,null,null,6]
[2,"V","A",{"$f":"+D22+$A23","v":2},{"$f":"'Planá n.Lužnicí, Strkov'!$E$24","v":"U Reálky"},null,null,null,null,null,16,21,43,null,null,null,null,null,null,6,59,null,null,6,59,null,null,21,43]
[2,"V","A",{"$f":"+D23+$A24","v":4},{"$f":"'Planá n.Lužnicí, Strkov'!$E$25","v":"Písecké rozcestí"},null,null,null,null,null,17,41,null,null,null,null,null,null,null,56,null,null,null,56,null,null,null,41]
[2,"V","A",{"$f":"+D24+$A25","v":6},{"$f":"'Planá n.Lužnicí, Strkov'!$E$26","v":"Nemocnice"},null,null,null,null,null,18,26,null,null,null,null,null,null,null,26,null,null,null,26,null,null,null,26]
[2,"V","A",{"$f":"+D25+$A26","v":8},{"$f":"'Planá n.Lužnicí, Strkov'!$E$27","v":"Klokoty"},null,null,null,null,null,19,56,null,null,null,null,null,null,null,16,null,null,null,16,null,null,null,56]
[1,"V","A",{"$f":"+D26+$A27","v":9},{"$f":"'Planá n.Lužnicí, Strkov'!$E$28","v":"Klokoty točna"},null,null,null,null,null,20,null,null,null,null,null,null,null,null,19,null,null,null,19]
[null,null,null,null,null,null,null,null,null,null,21,36,56,null,null,null,null,null,null,1,46,null,null,1,46,null,null,56]
[null,null,{"$f":"platnost!$A29","v":"jízdné 16,- Kč"},null,null,"platí 10 minut",null,null,null,null,22,34,null,null,null,null,null,null,null,26,null,null,null,26,null,null,null,34]
[null,null,{"$f":"platnost!$A30","v":"jízdné 20,- Kč"},null,null,"platí 20 minut",null,null,null,null,23,9,32,null,null,null,null,null,null,9,50,null,null,9,50,null,null,9,32]
[null,null,{"$f":"platnost!$A31","v":"jízdné 24,- Kč"},null,null,"platí 60 minut"]
[null,null,null,null,null,null,null,null,null,null,"Vysvětlivky:",null,null,{"$f":"platnost!$G$26","v":"G - nejede 19.4.2025"}]
[null,null,null,null,null,null,null,null,null,null,null,null,null,{"$f":"platnost!$G$23","v":"POZOR - zastávka Nový hřbitov NA ZNAMENÍ"}]
[]
[null,null,null,null,null,null,null,null,null,null,null,null,null,{"$f":"platnost!$G$22","v":"Všechny spoje s bezbariérově přístupným vozidlem"}]

{"sheet":"U Reálky","index":18,"n_rows":35,"n_cols":29,"rows_kept":35,"cut":false,"hidden":false,"merged":[[0,24,3,27]]}
["Platnost:",null,null,{"$f":"platnost!$A$1","v":"platí od 31.8.2025"},null,null,null,null,null,null,null,"informace: 381256366",null,null,null,null,null,null,null,null,null,null,null,null,13]
["COMETT PLUS, spol.s r.o.,Chýnovská 2115,Tábor 39002,mhd@comettplus.cz"]
["Linka : ",null,"395013",null,null,null,null,"Zastávka:",null,null,{"$f":"E23","v":"U Reálky"}]
[null,null,"pásmo ","minut. vzdál."]
[0,null,"C",null,{"$f":"'Planá n.Lužnicí, Strkov'!$E$5","v":"Planá n.Lužnicí Strkov"},null,null,null,null,null,"Pracovní dny",null,null,null,null,null,null,null,null,"Soboty",null,null,null,"neděle + svátky",null,null,null,"Pracovní dny - omezení dopravy MHD"]
[0,null,"C",null,"Planá n.Lužnicí Strkovská ",null,null,null,null,null,"Hod","minuty",null,null,null,null,null,null,null,"minuty",null,null,null,"minuty",null,null,null,{"$f":"platnost!$A$2","v":"    od 30.června do 29.srpna"}]
[3,null,"C",null,{"$f":"'Planá n.Lužnicí, Strkov'!$E$7","v":"Planá n.Lužnicí náměstí"},null,null,null,null,null,0]
[1,null,"C",null,"Planá n.Lužnicí U řadovek",null,null,null,null,null,1,null,null,null,null,null,null,null,null,"G06",null,null,null,6]
[1,null,"C",null,{"$f":"'Planá n.Lužnicí, Strkov'!$E$9","v":"Planá n.Lužnicí Masokomb. točna"},null,null,null,null,null,2]
[1,null,"C",null,{"$f":"'Planá n.Lužnicí, Strkov'!$E$10","v":"Planá n.Lužnicí Masokomb. závod"},null,null,null,null,null,3,null,null,null,null,null,null,null,null,14,null,null,null,14]
[1,null,"C",null,{"$f":"'Planá n.Lužnicí, Strkov'!$E$11","v":"Planá n.Lužnicí Madeta"},null,null,null,null,null,4,43,null,null,null,null,null,null,null,59,null,null,null,59,null,null,null,43]
[1,null,"C",null,{"$f":"'Planá n.Lužnicí, Strkov'!$E$12","v":"Planá n.Lužnicí hřbitov"},null,null,null,null,null,5,23,43,null,null,null,null,null,null,29,null,null,null,29,null,null,null,23,43]
[2,null,"C,B",null,{"$f":"'Planá n.Lužnicí, Strkov'!$E$13","v":"Planá n.Lužnicí Silon"},null,null,null,null,null,6,33,53,null,null,null,null,null,null,28,53,null,null,28,53,null,null,33,53]
[1,null,"B",null,{"$f":"'Planá n.Lužnicí, Strkov'!$E$14","v":"Sezimovo Ústí II Kovosvit"},null,null,null,null,null,7,28,58,null,null,null,null,null,null,48,null,null,null,48,null,null,null,28,58]
[2,null,"B",null,{"$f":"'Planá n.Lužnicí, Strkov'!$E$16","v":"Sezimovo Ústí I rozcestí"},null,null,null,null,null,8,null,null,null,null,null,null,null,null,41,null,null,null,41]
[1,null,"B",null,{"$f":"'Planá n.Lužnicí, Strkov'!$E$17","v":"Sezimovo Ústí I náměstí"},null,null,null,null,null,9,13,null,null,null,null,null,null,null,13,null,null,null,13,null,null,null,13]
[2,null,"B",null,{"$f":"'Planá n.Lužnicí, Strkov'!$E$18","v":"sídl. Nad Lužnicí "},null,null,null,null,null,10,5,null,null,null,null,null,null,null,3,null,null,null,3,null,null,null,5]
[3,null,"B,A",null,{"$f":"'Planá n.Lužnicí, Strkov'!$E$19","v":"Nový hřbitov"},null,null,null,null,null,11,6,null,null,null,null,null,null,null,3,53,null,null,3,53,null,null,9]
[1,null,"A",null,{"$f":"'Planá n.Lužnicí, Strkov'!$E$20","v":"Na Kopečku"},null,null,null,null,null,12,10,null,null,null,null,null,null,null,36,null,null,null,36,null,null,null,10]
[2,null,"A",null,{"$f":"'Planá n.Lužnicí, Strkov'!$E$21","v":"Černé mosty"},null,null,null,null,null,13,38,null,null,null,null,null,null,null,18,56,null,null,18,56,null,null,38]
[2,null,"A",null,{"$f":"'Planá n.Lužnicí, Strkov'!$E$22","v":"Autobusové nádraží"},null,null,null,null,null,14,25,null,null,null,null,null,null,null,43,null,null,null,43,null,null,null,25]
[2,null,"A",null,{"$f":"'Planá n.Lužnicí, Strkov'!$E$23","v":"Poliklinika"},null,null,null,null,null,15,8,null,null,null,null,null,null,null,31,null,null,null,31,null,null,null,8]
[2,"V","A",0,{"$f":"'Planá n.Lužnicí, Strkov'!$E$24","v":"U Reálky"},null,null,null,null,null,16,23,45,null,null,null,null,null,null,8,null,null,null,8,null,null,null,23,45]
[2,"V","A",{"$f":"+D23+$A24","v":2},{"$f":"'Planá n.Lužnicí, Strkov'!$E$25","v":"Písecké rozcestí"},null,null,null,null,null,17,43,null,null,null,null,null,null,null,1,58,null,null,1,58,null,null,43]
[2,"V","A",{"$f":"+D24+$A25","v":4},{"$f":"'Planá n.Lužnicí, Strkov'!$E$26","v":"Nemocnice"},null,null,null,null,null,18,28,null,null,null,null,null,null,null,28,null,null,null,28,null,null,null,28]
[2,"V","A",{"$f":"+D25+$A26","v":6},{"$f":"'Planá n.Lužnicí, Strkov'!$E$27","v":"Klokoty"},null,null,null,null,null,19,58,null,null,null,null,null,null,null,18,null,null,null,18,null,null,null,58]
[1,"V","A",{"$f":"+D26+$A27","v":7},{"$f":"'Planá n.Lužnicí, Strkov'!$E$28","v":"Klokoty točna"},null,null,null,null,null,20,null,null,null,null,null,null,null,null,21,null,null,null,21]
[null,null,null,null,null,null,null,null,null,null,21,38,58,null,null,null,null,null,null,3,48,null,null,3,48,null,null,58]
[null,null,{"$f":"platnost!$A29","v":"jízdné 16,- Kč"},null,null,"platí 10 minut",null,null,null,null,22,36,null,null,null,null,null,null,null,28,null,null,null,28,null,null,null,36]
[null,null,{"$f":"platnost!$A30","v":"jízdné 20,- Kč"},null,null,"platí 20 minut",null,null,null,null,23,11,34,null,null,null,null,null,null,11,52,null,null,11,52,null,null,11,34]
[null,null,{"$f":"platnost!$A31","v":"jízdné 24,- Kč"},null,null,"platí 60 minut"]
[null,null,null,null,null,null,null,null,null,null,"Vysvětlivky:",null,null,{"$f":"platnost!$G$26","v":"G - nejede 19.4.2025"}]
[null,null,null,null,null,null,null,null,null,null,null,null,null,{"$f":"platnost!$G$23","v":"POZOR - zastávka Nový hřbitov NA ZNAMENÍ"}]
[]
[null,null,null,null,null,null,null,null,null,null,null,null,null,{"$f":"platnost!$G$22","v":"Všechny spoje s bezbariérově přístupným vozidlem"}]

{"sheet":"Písecké rozcestí","index":19,"n_rows":35,"n_cols":29,"rows_kept":35,"cut":false,"hidden":false,"merged":[[0,24,3,27]]}
["Platnost:",null,null,{"$f":"platnost!$A$1","v":"platí od 31.8.2025"},null,null,null,null,null,null,null,"informace: 381256366",null,null,null,null,null,null,null,null,null,null,null,null,13]
["COMETT PLUS, spol.s r.o.,Chýnovská 2115,Tábor 39002,mhd@comettplus.cz"]
["Linka : ",null,"395013",null,null,null,null,"Zastávka:",null,null,{"$f":"E24","v":"Písecké rozcestí"}]
[null,null,"pásmo ","minut. vzdál."]
[0,null,"C",null,{"$f":"'Planá n.Lužnicí, Strkov'!$E$5","v":"Planá n.Lužnicí Strkov"},null,null,null,null,null,"Pracovní dny",null,null,null,null,null,null,null,null,"Soboty",null,null,null,"neděle + svátky",null,null,null,"Pracovní dny - omezení dopravy MHD"]
[3,null,"C",null,"Planá n.Lužnicí Strkovská ",null,null,null,null,null,"Hod","minuty",null,null,null,null,null,null,null,"minuty",null,null,null,"minuty",null,null,null,{"$f":"platnost!$A$2","v":"    od 30.června do 29.srpna"}]
[3,null,"C",null,{"$f":"'Planá n.Lužnicí, Strkov'!$E$7","v":"Planá n.Lužnicí náměstí"},null,null,null,null,null,0]
[1,null,"C",null,"Planá n.Lužnicí U řadovek",null,null,null,null,null,1,null,null,null,null,null,null,null,null,"G08",null,null,null,8]
[1,null,"C",null,{"$f":"'Planá n.Lužnicí, Strkov'!$E$9","v":"Planá n.Lužnicí Masokomb. točna"},null,null,null,null,null,2]
[1,null,"C",null,{"$f":"'Planá n.Lužnicí, Strkov'!$E$10","v":"Planá n.Lužnicí Masokomb. závod"},null,null,null,null,null,3,null,null,null,null,null,null,null,null,16,null,null,null,16]
[1,null,"C",null,{"$f":"'Planá n.Lužnicí, Strkov'!$E$11","v":"Planá n.Lužnicí Madeta"},null,null,null,null,null,4,45,null,null,null,null,null,null,null,null,null,null,null,null,null,null,null,45]
[1,null,"C",null,{"$f":"'Planá n.Lužnicí, Strkov'!$E$12","v":"Planá n.Lužnicí hřbitov"},null,null,null,null,null,5,25,45,null,null,null,null,null,null,1,31,null,null,1,31,null,null,25,45]
[2,null,"C,B",null,{"$f":"'Planá n.Lužnicí, Strkov'!$E$13","v":"Planá n.Lužnicí Silon"},null,null,null,null,null,6,35,55,null,null,null,null,null,null,30,55,null,null,30,55,null,null,35,55]
[1,null,"B",null,{"$f":"'Planá n.Lužnicí, Strkov'!$E$14","v":"Sezimovo Ústí II Kovosvit"},null,null,null,null,null,7,30,null,null,null,null,null,null,null,50,null,null,null,50,null,null,null,30]
[2,null,"B",null,{"$f":"'Planá n.Lužnicí, Strkov'!$E$16","v":"Sezimovo Ústí I rozcestí"},null,null,null,null,null,8,0,null,null,null,null,null,null,null,43,null,null,null,43,null,null,null,0]
[1,null,"B",null,{"$f":"'Planá n.Lužnicí, Strkov'!$E$17","v":"Sezimovo Ústí I náměstí"},null,null,null,null,null,9,15,null,null,null,null,null,null,null,15,null,null,null,15,null,null,null,15]
[2,null,"B",null,{"$f":"'Planá n.Lužnicí, Strkov'!$E$18","v":"sídl. Nad Lužnicí "},null,null,null,null,null,10,7,null,null,null,null,null,null,null,5,null,null,null,5,null,null,null,7]
[3,null,"B,A",null,{"$f":"'Planá n.Lužnicí, Strkov'!$E$19","v":"Nový hřbitov"},null,null,null,null,null,11,8,null,null,null,null,null,null,null,5,55,null,null,5,55,null,null,11]
[1,null,"A",null,{"$f":"'Planá n.Lužnicí, Strkov'!$E$20","v":"Na Kopečku"},null,null,null,null,null,12,12,null,null,null,null,null,null,null,38,null,null,null,38,null,null,null,12]
[2,null,"A",null,{"$f":"'Planá n.Lužnicí, Strkov'!$E$21","v":"Černé mosty"},null,null,null,null,null,13,40,null,null,null,null,null,null,null,20,58,null,null,20,58,null,null,40]
[2,null,"A",null,{"$f":"'Planá n.Lužnicí, Strkov'!$E$22","v":"Autobusové nádraží"},null,null,null,null,null,14,27,null,null,null,null,null,null,null,45,null,null,null,45,null,null,null,27]
[2,null,"A",null,{"$f":"'Planá n.Lužnicí, Strkov'!$E$23","v":"Poliklinika"},null,null,null,null,null,15,10,null,null,null,null,null,null,null,33,null,null,null,33,null,null,null,10]
[2,null,"A",null,{"$f":"'Planá n.Lužnicí, Strkov'!$E$24","v":"U Reálky"},null,null,null,null,null,16,25,47,null,null,null,null,null,null,10,null,null,null,10,null,null,null,25,47]
[2,"V","A",0,{"$f":"'Planá n.Lužnicí, Strkov'!$E$25","v":"Písecké rozcestí"},null,null,null,null,null,17,45,null,null,null,null,null,null,null,3,null,null,null,3,null,null,null,45]
[2,"V","A",{"$f":"+D24+$A25","v":2},{"$f":"'Planá n.Lužnicí, Strkov'!$E$26","v":"Nemocnice"},null,null,null,null,null,18,30,null,null,null,null,null,null,null,0,30,null,null,0,30,null,null,30]
[2,"V","A",{"$f":"+D25+$A26","v":4},{"$f":"'Planá n.Lužnicí, Strkov'!$E$27","v":"Klokoty"},null,null,null,null,null,19,null,null,null,null,null,null,null,null,20,null,null,null,20]
[1,"V","A",{"$f":"+D26+$A27","v":5},{"$f":"'Planá n.Lužnicí, Strkov'!$E$28","v":"Klokoty točna"},null,null,null,null,null,20,0,null,null,null,null,null,null,null,23,null,null,null,23,null,null,null,0]
[null,null,null,null,null,null,null,null,null,null,21,40,null,null,null,null,null,null,null,5,50,null,null,5,50]
[null,null,{"$f":"platnost!$A29","v":"jízdné 16,- Kč"},null,null,"platí 10 minut",null,null,null,null,22,0,38,null,null,null,null,null,null,30,null,null,null,30,null,null,null,0,38]
[null,null,{"$f":"platnost!$A30","v":"jízdné 20,- Kč"},null,null,"platí 20 minut",null,null,null,null,23,13,36,null,null,null,null,null,null,13,54,null,null,13,54,null,null,13,36]
[null,null,{"$f":"platnost!$A31","v":"jízdné 24,- Kč"},null,null,"platí 60 minut"]
[null,null,null,null,null,null,null,null,null,null,"Vysvětlivky:",null,null,{"$f":"platnost!$G$26","v":"G - nejede 19.4.2025"}]
[null,null,null,null,null,null,null,null,null,null,null,null,null,{"$f":"platnost!$G$23","v":"POZOR - zastávka Nový hřbitov NA ZNAMENÍ"}]
[]
[null,null,null,null,null,null,null,null,null,null,null,null,null,{"$f":"platnost!$G$22","v":"Všechny spoje s bezbariérově přístupným vozidlem"}]

{"sheet":"Nemocnice","index":20,"n_rows":35,"n_cols":29,"rows_kept":35,"cut":false,"hidden":false,"merged":[[0,24,3,27]]}
["Platnost:",null,null,{"$f":"platnost!$A$1","v":"platí od 31.8.2025"},null,null,null,null,null,null,null,"informace: 381256366",null,null,null,null,null,null,null,null,null,null,null,null,13]
["COMETT PLUS, spol.s r.o.,Chýnovská 2115,Tábor 39002,mhd@comettplus.cz"]
["Linka : ",null,"395013",null,null,null,null,"Zastávka:",null,null,{"$f":"E25","v":"Nemocnice"}]
[null,null,"pásmo ","minut. vzdál."]
[0,null,"C",null,{"$f":"'Planá n.Lužnicí, Strkov'!$E$5","v":"Planá n.Lužnicí Strkov"},null,null,null,null,null,"Pracovní dny",null,null,null,null,null,null,null,null,"Soboty",null,null,null,"neděle + svátky",null,null,null,"Pracovní dny - omezení dopravy MHD"]
[0,null,"C",null,"Planá n.Lužnicí Strkovská ",null,null,null,null,null,"Hod","minuty",null,null,null,null,null,null,null,"minuty",null,null,null,"minuty",null,null,null,{"$f":"platnost!$A$2","v":"    od 30.června do 29.srpna"}]
[3,null,"C",null,{"$f":"'Planá n.Lužnicí, Strkov'!$E$7","v":"Planá n.Lužnicí náměstí"},null,null,null,null,null,0]
[null,null,"C",null,"Planá n.Lužnicí U řadovek",null,null,null,null,null,1,null,null,null,null,null,null,null,null,"G10",null,null,null,10]
[1,null,"C",null,{"$f":"'Planá n.Lužnicí, Strkov'!$E$9","v":"Planá n.Lužnicí Masokomb. točna"},null,null,null,null,null,2]
[1,null,"C",null,{"$f":"'Planá n.Lužnicí, Strkov'!$E$10","v":"Planá n.Lužnicí Masokomb. závod"},null,null,null,null,null,3,null,null,null,null,null,null,null,null,18,null,null,null,18]
[1,null,"C",null,{"$f":"'Planá n.Lužnicí, Strkov'!$E$11","v":"Planá n.Lužnicí Madeta"},null,null,null,null,null,4,47,null,null,null,null,null,null,null,null,null,null,null,null,null,null,null,47]
[1,null,"C",null,{"$f":"'Planá n.Lužnicí, Strkov'!$E$12","v":"Planá n.Lužnicí hřbitov"},null,null,null,null,null,5,27,47,null,null,null,null,null,null,3,33,null,null,3,33,null,null,27,47]
[2,null,"C,B",null,{"$f":"'Planá n.Lužnicí, Strkov'!$E$13","v":"Planá n.Lužnicí Silon"},null,null,null,null,null,6,37,57,null,null,null,null,null,null,32,57,null,null,32,57,null,null,37,57]
[1,null,"B",null,{"$f":"'Planá n.Lužnicí, Strkov'!$E$14","v":"Sezimovo Ústí II Kovosvit"},null,null,null,null,null,7,32,null,null,null,null,null,null,null,52,null,null,null,52,null,null,null,32]
[2,null,"B",null,{"$f":"'Planá n.Lužnicí, Strkov'!$E$16","v":"Sezimovo Ústí I rozcestí"},null,null,null,null,null,8,2,null,null,null,null,null,null,null,45,null,null,null,45,null,null,null,2]
[1,null,"B",null,{"$f":"'Planá n.Lužnicí, Strkov'!$E$17","v":"Sezimovo Ústí I náměstí"},null,null,null,null,null,9,17,null,null,null,null,null,null,null,17,null,null,null,17,null,null,null,17]
[2,null,"B",null,{"$f":"'Planá n.Lužnicí, Strkov'!$E$18","v":"sídl. Nad Lužnicí "},null,null,null,null,null,10,9,null,null,null,null,null,null,null,7,null,null,null,7,null,null,null,9]
[3,null,"B,A",null,{"$f":"'Planá n.Lužnicí, Strkov'!$E$19","v":"Nový hřbitov"},null,null,null,null,null,11,10,null,null,null,null,null,null,null,7,57,null,null,7,57,null,null,13]
[1,null,"A",null,{"$f":"'Planá n.Lužnicí, Strkov'!$E$20","v":"Na Kopečku"},null,null,null,null,null,12,14,null,null,null,null,null,null,null,40,null,null,null,40,null,null,null,14]
[2,null,"A",null,{"$f":"'Planá n.Lužnicí, Strkov'!$E$21","v":"Černé mosty"},null,null,null,null,null,13,42,null,null,null,null,null,null,null,22,null,null,null,22,null,null,null,42]
[2,null,"A",null,{"$f":"'Planá n.Lužnicí, Strkov'!$E$22","v":"Autobusové nádraží"},null,null,null,null,null,14,29,null,null,null,null,null,null,null,0,47,null,null,0,47,null,null,29]
[2,null,"A",null,{"$f":"'Planá n.Lužnicí, Strkov'!$E$23","v":"Poliklinika"},null,null,null,null,null,15,12,null,null,null,null,null,null,null,35,null,null,null,35,null,null,null,12]
[2,null,"A",null,{"$f":"'Planá n.Lužnicí, Strkov'!$E$24","v":"U Reálky"},null,null,null,null,null,16,27,49,null,null,null,null,null,null,12,null,null,null,12,null,null,null,27,49]
[2,null,"A",null,{"$f":"'Planá n.Lužnicí, Strkov'!$E$25","v":"Písecké rozcestí"},null,null,null,null,null,17,47,null,null,null,null,null,null,null,5,null,null,null,5,null,null,null,47]
[2,"V","A",0,{"$f":"'Planá n.Lužnicí, Strkov'!$E$26","v":"Nemocnice"},null,null,null,null,null,18,32,null,null,null,null,null,null,null,2,32,null,null,2,32,null,null,32]
[2,"V","A",{"$f":"+D25+$A26","v":2},{"$f":"'Planá n.Lužnicí, Strkov'!$E$27","v":"Klokoty"},null,null,null,null,null,19,null,null,null,null,null,null,null,null,22,null,null,null,22]
[1,"V","A",{"$f":"+D26+$A27","v":3},{"$f":"'Planá n.Lužnicí, Strkov'!$E$28","v":"Klokoty točna"},null,null,null,null,null,20,2,null,null,null,null,null,null,null,25,null,null,null,25,null,null,null,2]
[null,null,null,null,null,null,null,null,null,null,21,42,null,null,null,null,null,null,null,7,52,null,null,7,52]
[null,null,{"$f":"platnost!$A29","v":"jízdné 16,- Kč"},null,null,"platí 10 minut",null,null,null,null,22,2,40,null,null,null,null,null,null,32,null,null,null,32,null,null,null,2,40]
[null,null,{"$f":"platnost!$A30","v":"jízdné 20,- Kč"},null,null,"platí 20 minut",null,null,null,null,23,15,38,null,null,null,null,null,null,15,56,null,null,15,56,null,null,15,38]
[null,null,{"$f":"platnost!$A31","v":"jízdné 24,- Kč"},null,null,"platí 60 minut"]
[null,null,null,null,null,null,null,null,null,null,"Vysvětlivky:",null,null,{"$f":"platnost!$G$26","v":"G - nejede 19.4.2025"}]
[null,null,null,null,null,null,null,null,null,null,null,null,null,{"$f":"platnost!$G$23","v":"POZOR - zastávka Nový hřbitov NA ZNAMENÍ"}]
[]
[null,null,null,null,null,null,null,null,null,null,null,null,null,{"$f":"platnost!$G$22","v":"Všechny spoje s bezbariérově přístupným vozidlem"},null,null,null,null,null,null,null,null,null,null,null,null,null,null,2]

{"sheet":"Klokoty","index":21,"n_rows":35,"n_cols":29,"rows_kept":35,"cut":false,"hidden":false,"merged":[[0,24,3,27]]}
["Platnost:",null,null,{"$f":"platnost!$A$1","v":"platí od 31.8.2025"},null,null,null,null,null,null,null,"informace: 381256366",null,null,null,null,null,null,null,null,null,null,null,null,13]
["COMETT PLUS, spol.s r.o.,Chýnovská 2115,Tábor 39002,mhd@comettplus.cz"]
["Linka : ",null,"395013",null,null,null,null,"Zastávka:",null,null,{"$f":"E26","v":"Klokoty"}]
[null,null,"pásmo ","minut. vzdál."]
[0,null,"C",null,{"$f":"'Planá n.Lužnicí, Strkov'!$E$5","v":"Planá n.Lužnicí Strkov"},null,null,null,null,null,"Pracovní dny",null,null,null,null,null,null,null,null,"Soboty",null,null,null,"neděle + svátky",null,null,null,"Pracovní dny - omezení dopravy MHD"]
[3,null,"C",null,"Planá n.Lužnicí Strkovská ",null,null,null,null,null,"Hod","minuty",null,null,null,null,null,null,null,"minuty",null,null,null,"minuty",null,null,null,{"$f":"platnost!$A$2","v":"    od 30.června do 29.srpna"}]
[3,null,"C",null,{"$f":"'Planá n.Lužnicí, Strkov'!$E$7","v":"Planá n.Lužnicí náměstí"},null,null,null,null,null,0]
[1,null,"C",null,"Planá n.Lužnicí U řadovek",null,null,null,null,null,1,null,null,null,null,null,null,null,null,"G12",null,null,null,12]
[1,null,"C",null,{"$f":"'Planá n.Lužnicí, Strkov'!$E$9","v":"Planá n.Lužnicí Masokomb. točna"},null,null,null,null,null,2]
[1,null,"C",null,{"$f":"'Planá n.Lužnicí, Strkov'!$E$10","v":"Planá n.Lužnicí Masokomb. závod"},null,null,null,null,null,3,null,null,null,null,null,null,null,null,20,null,null,null,20]
[1,null,"C",null,{"$f":"'Planá n.Lužnicí, Strkov'!$E$11","v":"Planá n.Lužnicí Madeta"},null,null,null,null,null,4,49,null,null,null,null,null,null,null,null,null,null,null,null,null,null,null,49]
[1,null,"C",null,{"$f":"'Planá n.Lužnicí, Strkov'!$E$12","v":"Planá n.Lužnicí hřbitov"},null,null,null,null,null,5,29,49,null,null,null,null,null,null,5,35,null,null,5,35,null,null,29,49]
[2,null,"C,B",null,{"$f":"'Planá n.Lužnicí, Strkov'!$E$13","v":"Planá n.Lužnicí Silon"},null,null,null,null,null,6,39,59,null,null,null,null,null,null,34,59,null,null,34,59,null,null,39,59]
[1,null,"B",null,{"$f":"'Planá n.Lužnicí, Strkov'!$E$14","v":"Sezimovo Ústí II Kovosvit"},null,null,null,null,null,7,34,null,null,null,null,null,null,null,54,null,null,null,54,null,null,null,34]
[2,null,"B",null,{"$f":"'Planá n.Lužnicí, Strkov'!$E$16","v":"Sezimovo Ústí I rozcestí"},null,null,null,null,null,8,4,null,null,null,null,null,null,null,47,null,null,null,47,null,null,null,4]
[1,null,"B",null,{"$f":"'Planá n.Lužnicí, Strkov'!$E$17","v":"Sezimovo Ústí I náměstí"},null,null,null,null,null,9,19,null,null,null,null,null,null,null,19,null,null,null,19,null,null,null,19]
[2,null,"B",null,{"$f":"'Planá n.Lužnicí, Strkov'!$E$18","v":"sídl. Nad Lužnicí "},null,null,null,null,null,10,11,null,null,null,null,null,null,null,9,null,null,null,9,null,null,null,11]
[3,null,"B,A",null,{"$f":"'Planá n.Lužnicí, Strkov'!$E$19","v":"Nový hřbitov"},null,null,null,null,null,11,12,null,null,null,null,null,null,null,9,59,null,null,9,59,null,null,15]
[1,null,"A",null,{"$f":"'Planá n.Lužnicí, Strkov'!$E$20","v":"Na Kopečku"},null,null,null,null,null,12,16,null,null,null,null,null,null,null,42,null,null,null,42,null,null,null,16]
[2,null,"A",null,{"$f":"'Planá n.Lužnicí, Strkov'!$E$21","v":"Černé mosty"},null,null,null,null,null,13,44,null,null,null,null,null,null,null,24,null,null,null,24,null,null,null,44]
[2,null,"A",null,{"$f":"'Planá n.Lužnicí, Strkov'!$E$22","v":"Autobusové nádraží"},null,null,null,null,null,14,31,null,null,null,null,null,null,null,2,49,null,null,2,49,null,null,31]
[2,null,"A",null,{"$f":"'Planá n.Lužnicí, Strkov'!$E$23","v":"Poliklinika"},null,null,null,null,null,15,14,null,null,null,null,null,null,null,37,null,null,null,37,null,null,null,14]
[2,null,"A",null,{"$f":"'Planá n.Lužnicí, Strkov'!$E$24","v":"U Reálky"},null,null,null,null,null,16,29,51,null,null,null,null,null,null,14,null,null,null,14,null,null,null,29,51]
[2,null,"A",null,{"$f":"'Planá n.Lužnicí, Strkov'!$E$25","v":"Písecké rozcestí"},null,null,null,null,null,17,49,null,null,null,null,null,null,null,7,null,null,null,7,null,null,null,49]
[2,null,"A",null,{"$f":"'Planá n.Lužnicí, Strkov'!$E$26","v":"Nemocnice"},null,null,null,null,null,18,34,null,null,null,null,null,null,null,4,34,null,null,4,34,null,null,34]
[2,"V","A",0,{"$f":"'Planá n.Lužnicí, Strkov'!$E$27","v":"Klokoty"},null,null,null,null,null,19,null,null,null,null,null,null,null,null,24,null,null,null,24]
[1,"V","A",{"$f":"+D26+$A27","v":1},{"$f":"'Planá n.Lužnicí, Strkov'!$E$28","v":"Klokoty točna"},null,null,null,null,null,20,4,null,null,null,null,null,null,null,27,null,null,null,27,null,null,null,4]
[null,null,null,null,null,null,null,null,null,null,21,44,null,null,null,null,null,null,null,9,54,null,null,9,54]
[null,null,{"$f":"platnost!$A29","v":"jízdné 16,- Kč"},null,null,"platí 10 minut",null,null,null,null,22,4,42,null,null,null,null,null,null,34,null,null,null,34,null,null,null,4,42]
[null,null,{"$f":"platnost!$A30","v":"jízdné 20,- Kč"},null,null,"platí 20 minut",null,null,null,null,23,17,40,null,null,null,null,null,null,17,58,null,null,17,58,null,null,17,40]
[null,null,{"$f":"platnost!$A31","v":"jízdné 24,- Kč"},null,null,"platí 60 minut"]
[null,null,null,null,null,null,null,null,null,null,"Vysvětlivky:",null,null,{"$f":"platnost!$G$26","v":"G - nejede 19.4.2025"}]
[null,null,null,null,null,null,null,null,null,null,null,null,null,{"$f":"platnost!$G$23","v":"POZOR - zastávka Nový hřbitov NA ZNAMENÍ"}]
[]
[null,null,null,null,null,null,null,null,null,null,null,null,null,{"$f":"platnost!$G$22","v":"Všechny spoje s bezbariérově přístupným vozidlem"}]